{"text_format":"1","workbook":"xlsx","n_sheets":1,"sheets":["Συγκεντρωτικά"],"not_rendered":{"charts":0,"images":0,"macros":1,"external_links":2,"defined_names":7,"comments":0,"pivot_tables":0},"unopened":[],"bounds":{"document_bytes":16777216,"sheet_cells":100000,"rows_first":2000,"rows_last":500,"rows_between":2000,"halvings":0,"cell_chars":16384,"cell_head_chars":4096},"cells_cut":0,"cells_raw":0,"read":"whole","date_system":"1900"}

{"sheet":"Συγκεντρωτικά","index":0,"n_rows":623,"n_cols":15,"rows_kept":623,"cut":false,"hidden":false,"merged":[[0,8,0,14],[557,0,557,4],[576,0,576,4],[589,0,589,4],[207,0,207,4],[369,0,369,4],[436,0,436,4],[451,0,451,4],[467,0,467,4],[503,0,503,4],[105,0,105,4],[1,0,1,4],[1,8,1,14]]}
[null,null,null,null,null,null,null,null," ΓΕΝΙΚΑ ΛΥΚΕΙΑ Π.Ε. ΞΑΝΘΗΣ"]
["1 ΓΕΛ",null,null,null,null,null,null,null,"ΕΠΙ ΣΥΝΌΛΟΥ 781 ΑΙΤΗΣΕΩΝ ΥΠΟΨΗΦΊΩΝ ΓΕΝΙΚΩΝ ΛΥΚΕΙΩΝΕΙΣΉΧΘΗΚΑΝ ΟΙ 607 ΠΟΣΟΣΤΟ 78%"]
["ΣΧΟΛΗ ΕΙΣΑΓΩΓΗΣ","ΠΛΉΘΟΣ ΕΙΣΑΓΟΜΕΝΩΝ",null,"Α.Ε.Ι.","ΠΛΉΘΟΣ ΕΙΣΑΓΟΜΕΝΩΝ",null,null,null,"ΣΧΟΛΗ ΕΙΣΑΓΩΓΗΣ","ΠΛΉΘΟΣ ΕΙΣΑΓΟΜΕΝΩΝ","ΠΟΣΟΣΤΌ ΕΙΣΑΓΟΜΈΝΩ ΣΤΗΝ ΑΝΤΊΣΤΟΙΧΗ ΣΧΟΛΉ",null,"ΙΔΡΥΜΑ","ΠΛΉΘΟΣ ΕΙΣΑΓΟΜΕΝΩΝ","ΠΟΣΟΣΤΟ ΕΙΣΑΓΟΜΈΝΩ ΣΤΟ ΑΝΤΊΣΤΟΙΧΟ ΑΕΙ"]
["ΑΓΡΟΤΙΚΗΣ ΑΝΑΠΤΥΞΗΣ (ΟΡΕΣΤΙΑΔΑ) ",1,null,"ΔΗΜ. ΠΑΝ. ΘΡΑΚΗΣ",32,null,null,null,"ΜΗΧΑΝΙΚΩΝ ΤΕΧΝΟΛΟΓΙΑΣ ΠΕΤΡΕΛΑΙΟΥ & ΦΥΣΙΚΟΥ ΑΕΡΙΟΥ Τ.Ε. ΚΑΙ ΜΗΧΑΝΟΛΟΓΩΝ ΜΗΧΑΝΙΚΩΝ Τ.Ε. (ΚΑΒΑΛΑ) - ΜΗΧΑΝΟΛΟΓΩΝ ΜΗΧΑΝΙΚΩΝ Τ.Ε.",14,{"$f":"J4/607%","v":2.3064250411861615},null,"ΔΗΜ. ΠΑΝ. ΘΡΑΚΗΣ",99,{"$f":"N4/607%","v":16.309719934102141}]
["ΜΗΧΑΝΙΚΩΝ ΤΕΧΝΟΛΟΓΙΑΣ ΠΕΤΡΕΛΑΙΟΥ & ΦΥΣΙΚΟΥ ΑΕΡΙΟΥ Τ.Ε. ΚΑΙ ΜΗΧΑΝΟΛΟΓΩΝ ΜΗΧΑΝΙΚΩΝ Τ.Ε. (ΚΑΒΑΛΑ) - ΜΗΧΑΝΙΚΩΝ ΤΕΧΝΟΛΟΓΙΑΣ ΠΕΤΡΕΛΑΙΟΥ ΚΑΙ ΦΥΣΙΚΟΥ ΑΕΡΙΟΥ Τ.Ε.",3,null,"ΤΕΙ ΑΝΑΤ. ΜΑΚ/ΝΙΑΣ & ΘΡΑΚΗΣ",13,null,null,null,"ΜΗΧΑΝΙΚΩΝ ΤΕΧΝΟΛΟΓΙΑΣ ΠΕΤΡΕΛΑΙΟΥ & ΦΥΣΙΚΟΥ ΑΕΡΙΟΥ Τ.Ε. ΚΑΙ ΜΗΧΑΝΟΛΟΓΩΝ ΜΗΧΑΝΙΚΩΝ Τ.Ε. (ΚΑΒΑΛΑ) - ΜΗΧΑΝΙΚΩΝ ΤΕΧΝΟΛΟΓΙΑΣ ΠΕΤΡΕΛΑΙΟΥ ΚΑΙ ΦΥΣΙΚΟΥ ΑΕΡΙΟΥ Τ.Ε.",12,1.9769357495881383,null,"ΤΕΙ ΑΝΑΤ. ΜΑΚ/ΝΙΑΣ & ΘΡΑΚΗΣ",61,{"$f":"N5/607%","v":10.049423393739703}]
["ΛΟΓΙΣΤΙΚΗΣ ΚΑΙ ΧΡΗΜΑΤΟΟΙΚΟΝΟΜΙΚΗΣ (ΣΕΡΡΕΣ)",1,null,"ΤΕΙ ΚΕΝΤΡ ΜΑΚ/ΝΙΑΣ",4,null,null,null,"ΠΑΙΔΑΓΩΓΙΚΟ ΔΗΜΟΤΙΚΗΣ ΕΚΠΑΙΔΕΥΣΗΣ (ΑΛΕΞΑΝΔΡΟΥΠΟΛΗ)",12,1.9769357495881383,null,"ΤΕΙ ΚΕΝΤΡ ΜΑΚ/ΝΙΑΣ",18,2.9654036243822075]
["ΟΙΚΟΝΟΜΙΚΩΝ ΕΠΙΣΤΗΜΩΝ (ΚΟΜΟΤΗΝΗ)",6,null,"ΤΕΙ ΘΕΣ/ΚΗΣ",7,null,null,null,"ΜΗΧΑΝΙΚΩΝ ΠΕΡΙΒΑΛΛΟΝΤΟΣ (ΞΑΝΘΗ) ",11,1.8121911037891267,null,"ΤΕΙ ΘΕΣ/ΚΗΣ",29,4.7775947281713345]
["ΗΛΕΚΤΡΟΝΙΚΩΝ ΜΗΧΑΝΙΚΩΝ Τ.Ε. (ΘΕΣΣΑΛΟΝΙΚΗ)",1,null,"ΠΑΝ. ΘΕΣΣΑΛΙΑΣ",6,null,null,null,"ΗΛΕΚΤΡΟΛΟΓΩΝ ΜΗΧΑΝΙΚΩΝ & ΜΗΧΑΝΙΚΩΝ ΥΠΟΛΟΓΙΣΤΩΝ (ΞΑΝΘΗ)",11,1.8121911037891267,null,"ΠΑΝ. ΘΕΣΣΑΛΙΑΣ",22,3.6243822075782535]
["ΜΗΧΑΝΙΚΩΝ ΑΥΤΟΜΑΤΙΣΜΟΥ Τ.Ε. (ΘΕΣΣΑΛΟΝΙΚΗ)",1,null,"ΑΠΘ",20,null,null,null,"ΟΙΚΟΝΟΜΙΚΩΝ ΕΠΙΣΤΗΜΩΝ (ΚΟΜΟΤΗΝΗ)",10,1.6474464579901154,null,"ΑΠΘ",96,15.815485996705107]
["ΕΛΛΗΝΙΚΗΣ ΦΙΛΟΛΟΓΙΑΣ (ΚΟΜΟΤΗΝΗ)",1,null,"ΠΑΝ. ΙΩΑΝΝΙΝΩΝ",4,null,null,null,"ΗΛΕΚΤΡΟΛΟΓΩΝ ΜΗΧΑΝΙΚΩΝ Τ.Ε. (ΚΑΒΑΛΑ)",10,1.6474464579901154,null,"ΠΑΝ. ΙΩΑΝΝΙΝΩΝ",24,3.9538714991762767]
["ΠΛΗΡΟΦΟΡΙΚΗΣ ΜΕ ΕΦΑΡΜΟΓΕΣ ΣΤΗ ΒΙΟΪΑΤΡΙΚΗ (ΛΑΜΙΑ)",1,null,"ΤΕΙ ΔΥΤ. ΜΑΚ/ΝΙΑΣ",6,null,null,null,"ΛΟΓΙΣΤΙΚΗΣ ΚΑΙ ΧΡΗΜΑΤΟΟΙΚΟΝΟΜΙΚΗΣ (ΚΑΒΑΛΑ)",10,1.6474464579901154,null,"ΤΕΙ ΔΥΤ. ΜΑΚ/ΝΙΑΣ",22,3.6243822075782535]
["ΙΣΤΟΡΙΑΣ & ΕΘΝΟΛΟΓΙΑΣ (ΚΟΜΟΤΗΝΗ)",3,null,"ΕΚΠΑ",3,null,null,null,"ΠΑΙΔΑΓΩΓΙΚΟ ΔΗΜΟΤΙΚΗΣ ΕΚΠΑΙΔΕΥΣΗΣ (ΘΕΣΣΑΛΟΝΙΚΗ)",10,1.6474464579901154,null,"ΕΚΠΑ",21,3.4596375617792421]
["ΗΛΕΚΤΡΟΛΟΓΩΝ ΜΗΧΑΝΙΚΩΝ Τ.Ε. (ΚΑΒΑΛΑ)",4,null,"ΠΑΝ. ΠΑΤΡΩΝ",4,null,null,null,"ΜΗΧΑΝΙΚΩΝ ΠΑΡΑΓΩΓΗΣ & ΔΙΟΙΚΗΣΗΣ (ΞΑΝΘΗ)",8,1.3179571663920921,null,"ΠΑΝ. ΠΑΤΡΩΝ",19,3.1301482701812189]
["ΛΟΓΙΣΤΙΚΗΣ ΚΑΙ ΧΡΗΜΑΤΟΟΙΚΟΝΟΜΙΚΗΣ (ΚΑΒΑΛΑ)",3,null,"ΠΑΝ. ΔΥΤ. ΜΑΚ/ΝΙΑΣ",1,null,null,null,"ΚΟΙΝΩΝΙΚΗΣ ΔΙΟΙΚΗΣΗΣ ΚΑΙ ΠΟΛΙΤΙΚΗΣ ΕΠΙΣΤΗΜΗΣ (ΚΟΜΟΤΗΝΗ) -ΚΟΙΝΩΝΙΚΗΣ ΔΙΟΙΚΗΣΗΣ ",8,1.3179571663920921,null,"ΠΑΝ. ΔΥΤ. ΜΑΚ/ΝΙΑΣ",7,1.1532125205930808]
["ΠΑΙΔΑΓΩΓΙΚΟ ΔΗΜΟΤΙΚΗΣ ΕΚΠΑΙΔΕΥΣΗΣ (ΑΛΕΞΑΝΔΡΟΥΠΟΛΗ)",3,null,"ΙΟΝΙΟ ΠΑΝ.",2,null,null,null,"ΙΑΤΡΙΚΗΣ (ΘΕΣΣΑΛΟΝΙΚΗ)",7,1.1532125205930808,null,"ΙΟΝΙΟ ΠΑΝ.",8,1.3179571663920921]
["ΜΗΧΑΝΙΚΩΝ ΠΑΡΑΓΩΓΗΣ & ΔΙΟΙΚΗΣΗΣ (ΞΑΝΘΗ)",3,null,"ΠΑΝ. ΑΙΓΑΙΟΥ",3,null,null,null,"ΑΓΓΛΙΚΗΣ ΓΛΩΣΣΑΣ ΚΑΙ ΦΙΛΟΛΟΓΙΑΣ (ΘΕΣΣΑΛΟΝΙΚΗ)",6,0.98846787479406917,null,"ΠΑΝ. ΑΙΓΑΙΟΥ",34,5.6013179571663922]
["ΜΗΧΑΝΙΚΩΝ ΧΩΡΟΤΑΞΙΑΣ & ΑΝΑΠΤΥΞΗΣ (ΘΕΣΣΑΛΟΝΙΚΗ)",1,null,"ΤΕΙ ΗΠΕΙΡΟΥ",4,null,null,null,"ΜΗΧΑΝΙΚΩΝ ΠΛΗΡΟΦΟΡΙΚΗΣ Τ.Ε. (ΚΑΒΑΛΑ) ",6,0.98846787479406917,null,"ΤΕΙ ΗΠΕΙΡΟΥ",8,1.3179571663920921]
["ΙΣΤΟΡΙΑΣ & ΑΡΧΑΙΟΛΟΓΙΑΣ (ΙΩΑΝΝΙΝΑ)",1,null,"ΤΕΙ ΠΕΛ/ΝΗΣΟΥ",2,null,null,null,"ΙΣΤΟΡΙΑΣ & ΕΘΝΟΛΟΓΙΑΣ (ΚΟΜΟΤΗΝΗ)",5,0.82372322899505768,null,"ΤΕΙ ΠΕΛ/ΝΗΣΟΥ",5,0.82372322899505768]
["ΗΛΕΚΤΡΟΛΟΓΩΝ ΜΗΧΑΝΙΚΩΝ & ΜΗΧΑΝΙΚΩΝ ΥΠΟΛΟΓΙΣΤΩΝ (ΘΕΣΣΑΛΟΝΙΚΗ)",2,null,"ΤΕΙ ΠΕΙΡΑΙΑ",1,null,null,null,"ΗΛΕΚΤΡΟΛΟΓΩΝ ΜΗΧΑΝΙΚΩΝ & ΜΗΧΑΝΙΚΩΝ ΥΠΟΛΟΓΙΣΤΩΝ (ΘΕΣΣΑΛΟΝΙΚΗ)",5,0.82372322899505768,null,"ΤΕΙ ΠΕΙΡΑΙΑ",5,0.82372322899505768]
["ΔΙΟΙΚΗΣΗΣ ΕΠΙΧΕΙΡΗΣΕΩΝ (ΚΟΖΑΝΗ)",2,null,"ΠΑΝ. ΚΡΗΤΗΣ",2,null,null,null,"ΓΛΩΣΣΑΣ, ΦΙΛΟΛΟΓΙΑΣ & ΠΟΛΙΤΙΣΜΟΥ ΠΑΡΕΥΞΕΙΝΙΩΝ ΧΩΡΩΝ (ΚΟΜΟΤΗΝΗ)",5,0.82372322899505768,null,"ΠΑΝ. ΚΡΗΤΗΣ",19,3.1301482701812189]
["ΜΕΘΟΔΟΛΟΓΙΑΣ, ΙΣΤΟΡΙΑΣ & ΘΕΩΡΙΑΣ ΤΗΣ ΕΠΙΣΤΗΜΗΣ (ΑΘΗΝΑ)",1,null,"ΤΕΙ ΑΘΗΝΑΣ",2,null,null,null,"ΙΣΤΟΡΙΑΣ & ΑΡΧΑΙΟΛΟΓΙΑΣ (ΘΕΣΣΑΛΟΝΙΚΗ)",5,0.82372322899505768,null,"ΤΕΙ ΑΘΗΝΑΣ",16,2.6359143327841843]
["ΕΠΙΣΤΗΜΩΝ ΠΡΟΣΧΟΛΙΚΗΣ ΑΓΩΓΗΣ & ΕΚΠΑΙΔΕΥΣΗΣ (ΘΕΣΣΑΛΟΝΙΚΗ)",1,null,"ΤΕΙ  ΣΤΕΡ. ΕΛΛΑΔΑΣ",2,null,null,null,"ΜΑΘΗΜΑΤΙΚΩΝ (ΙΩΑΝΝΙΝΑ)",5,0.82372322899505768,null,"ΤΕΙ  ΣΤΕΡ. ΕΛΛΑΔΑΣ",10,1.6474464579901154]
["ΑΓΓΛΙΚΗΣ ΓΛΩΣΣΑΣ ΚΑΙ ΦΙΛΟΛΟΓΙΑΣ (ΘΕΣΣΑΛΟΝΙΚΗ)",2,null,"ΠΑΝ. ΜΑΚ/ΝΙΑΣ",4,null,null,null,"ΦΙΛΟΛΟΓΙΑΣ (ΘΕΣΣΑΛΟΝΙΚΗ)",5,0.82372322899505768,null,"ΠΑΝ. ΜΑΚ/ΝΙΑΣ",14,2.3064250411861615]
["ΜΑΘΗΜΑΤΙΚΩΝ (ΠΑΤΡΑ)",1,null,"ΣΣΕ",1,null,null,null,"ΕΠΙΣΤΗΜΩΝ ΤΗΣ ΕΚΠΑΙΔΕΥΣΗΣ ΣΤΗΝ ΠΡΟΣΧΟΛΙΚΗ ΗΛΙΚΙΑ (ΑΛΕΞΑΝΔΡΟΥΠΟΛΗ)",5,0.82372322899505768,null,"ΣΣΕ",1,0.16474464579901152]
["ΔΙΟΙΚΗΣΗΣ ΕΠΙΧΕΙΡΗΣΕΩΝ (ΘΕΣΣΑΛΟΝΙΚΗ) - ΔΙΟΙΚΗΣΗ ΤΟΥΡΙΣΤΙΚΩΝ ΕΠΙΧΕΙΡΗΣΕΩΝ ΚΑΙ ΕΠΙΧΕΙΡΗΣΕΩΝ ΦΙΛΟΞΕΝΙΑΣ",1,null,"ΤΕΙ ΘΕΣΣΑΛΙΑΣ",1,null,null,null,"ΑΙΣΘΗΤΙΚΗΣ & ΚΟΣΜΗΤΟΛΟΓΙΑΣ (ΘΕΣΣΑΛΟΝΙΚΗ)",5,0.82372322899505768,null,"ΤΕΙ ΘΕΣΣΑΛΙΑΣ",10,1.6474464579901154]
["ΜΗΧΑΝΙΚΩΝ ΠΕΡΙΒΑΛΛΟΝΤΟΣ (ΚΟΖΑΝΗ)",1,null,"ΕΜΠ",2,null,null,null,"ΑΓΡΟΤΙΚΗΣ ΑΝΑΠΤΥΞΗΣ (ΟΡΕΣΤΙΑΔΑ) ",4,0.65897858319604607,null,"ΕΜΠ",8,1.3179571663920921]
["ΓΛΩΣΣΑΣ, ΦΙΛΟΛΟΓΙΑΣ & ΠΟΛΙΤΙΣΜΟΥ ΠΑΡΕΥΞΕΙΝΙΩΝ ΧΩΡΩΝ (ΚΟΜΟΤΗΝΗ)",4,null,"ΤΕΙ ΔΥΤ. ΕΛΛΑΔΑΣ",2,null,null,null,"ΙΣΤΟΡΙΑΣ & ΑΡΧΑΙΟΛΟΓΙΑΣ (ΙΩΑΝΝΙΝΑ)",4,0.65897858319604607,null,"ΤΕΙ ΔΥΤ. ΕΛΛΑΔΑΣ",8,1.3179571663920921]
["ΠΟΛΙΤΙΚΩΝ ΜΗΧΑΝΙΚΩΝ Τ.Ε. ΚΑΙ ΜΗΧΑΝΙΚΩΝ ΤΟΠΟΓΡΑΦΙΑΣ & ΓΕΩΠΛΗΡΟΦΟΡΙΚΗΣ Τ.Ε. (ΣΕΡΡΕΣ) - ΠΟΛΙΤΙΚΩΝ ΜΗΧΑΝΙΚΩΝ Τ.Ε.",1,null,"ΑΕΝ",1,null,null,null,"ΔΙΟΙΚΗΣΗΣ ΕΠΙΧΕΙΡΗΣΕΩΝ (ΚΟΖΑΝΗ)",4,0.65897858319604607,null,"ΑΕΝ",3,0.49423393739703458]
["ΑΡΧΕΙΟΝΟΜΙΑΣ, ΒΙΒΛΙΟΘΗΚΟΝΟΜΙΑΣ ΚΑΙ ΜΟΥΣΕΙΟΛΟΓΙΑΣ (ΚΕΡΚΥΡΑ)",1,null,"","",null,null,null,"ΜΑΘΗΜΑΤΙΚΩΝ (ΘΕΣΣΑΛΟΝΙΚΗ)",4,0.65897858319604607,null,"ΤΕΙ ΚΡΗΤΗΣ",9,1.4827018121911038]
["ΜΗΧΑΝΙΚΩΝ ΠΕΡΙΒΑΛΛΟΝΤΟΣ (ΞΑΝΘΗ) ",3,null,"","",null,null,null,"ΛΑΪΚΗΣ & ΠΑΡΑΔΟΣΙΑΚΗΣ ΜΟΥΣΙΚΗΣ (ΑΡΤΑ)",4,0.65897858319604607,null,"ΣΣΑΣ",2,0.32948929159802304]
["ΕΠΙΣΤΗΜΗΣ ΤΡΟΦΙΜΩΝ & ΔΙΑΤΡΟΦΗΣ (ΛΗΜΝΟΣ)",1,null,"","",null,null,null,"ΕΦΑΡΜΟΣΜΕΝΗΣ ΠΛΗΡΟΦΟΡΙΚΗΣ (ΘΕΣΣΑΛΟΝΙΚΗ)",4,0.65897858319604607,null,"ΑΣΤΥΝ ΣΧΟΛ",2,0.32948929159802304]
["ΠΛΑΣΤΙΚΩΝ ΤΕΧΝΩΝ & ΕΠΙΣΤΗΜΩΝ ΤΗΣ ΤΕΧΝΗΣ (ΙΩΑΝΝΙΝΑ)",1,null,"","",null,null,null,"ΛΟΓΙΣΤΙΚΗΣ & ΧΡΗΜΑΤΟΟΙΚΟΝΟΜΙΚΗΣ (ΘΕΣΣΑΛΟΝΙΚΗ)",4,0.65897858319604607,null,"ΠΥΡΟΣΒ ΑΚΑΔ",2,0.32948929159802304]
["ΙΑΤΡΙΚΗΣ (ΘΕΣΣΑΛΟΝΙΚΗ)",1,null,"","",null,null,null,"ΜΗΧΑΝΟΛΟΓΩΝ ΟΧΗΜΑΤΩΝ Τ.Ε. (ΘΕΣΣΑΛΟΝΙΚΗ)",4,0.65897858319604607,null,"ΠΑΝ. ΠΕΛ/ΝΗΣΟΥ",5,0.82372322899505768]
["ΜΑΘΗΜΑΤΙΚΩΝ (ΘΕΣΣΑΛΟΝΙΚΗ)",2,null,"","",null,null,null,"ΓΕΩΓΡΑΦΙΑΣ (ΜΥΤΙΛΗΝΗ)",4,0.65897858319604607,null,"ΣΤΥΑ",1,0.16474464579901152]
["ΛΑΪΚΗΣ & ΠΑΡΑΔΟΣΙΑΚΗΣ ΜΟΥΣΙΚΗΣ (ΑΡΤΑ)",2,null,"","",null,null,null,"ΜΑΘΗΜΑΤΙΚΩΝ (ΣΑΜΟΣ) - ΜΑΘΗΜΑΤΙΚΩΝ",4,0.65897858319604607,null,"ΓΕΩΠ. ΠΑΝ. ΑΘ.",4,0.65897858319604607]
["ΟΙΝΟΛΟΓΙΑΣ & ΤΕΧΝΟΛΟΓΙΑΣ ΠΟΤΩΝ (ΔΡΑΜΑ)",1,null,"","",null,null,null,"ΕΠΙΣΤΗΜΩΝ ΤΗΣ ΠΡΟΣΧΟΛΙΚΗΣ ΑΓΩΓΗΣ & ΕΚΠΑΙΔΕΥΤΙΚΟΥ ΣΧΕΔΙΑΣΜΟΥ (ΡΟΔΟΣ)",4,0.65897858319604607,null,"ΠΟΛ/ΧΝΕΙΟ ΚΡΗΤΗΣ",2,0.32948929159802304]
["ΠΟΛΙΤΙΚΩΝ ΕΠΙΣΤΗΜΩΝ (ΘΕΣΣΑΛΟΝΙΚΗ) ",1,null,"","",null,null,null,"ΣΧΕΔΙΑΣΜΟΥ & ΤΕΧΝΟΛΟΓΙΑΣ ΕΝΔΥΣΗΣ (ΚΙΛΚΙΣ)",4,0.65897858319604607,null,"ΧΑΡΟΚΟΠΕΙΟ ΠΑΝ.",2,0.32948929159802304]
["ΔΙΟΙΚΗΣΗΣ ΕΠΙΧΕΙΡΗΣΕΩΝ ΚΑΙ ΟΡΓΑΝΙΣΜΩΝ (ΚΑΛΑΜΑΤΑ) - ΤΟΠΙΚΗΣ ΑΥΤΟΔΙΟΙΚΗΣΗΣ",1,null,"","",null,null,null,"ΛΟΓΙΣΤΙΚΗΣ ΚΑΙ ΧΡΗΜΑΤΟΟΙΚΟΝΟΜΙΚΗΣ (ΣΕΡΡΕΣ)",3,0.49423393739703458,null,"ΟΠΑ",1,0.16474464579901152]
["ΦΥΣΙΚΗΣ (ΑΘΗΝΑ)",1,null,"","",null,null,null,"ΕΠΙΣΤΗΜΩΝ ΠΡΟΣΧΟΛΙΚΗΣ ΑΓΩΓΗΣ & ΕΚΠΑΙΔΕΥΣΗΣ (ΘΕΣΣΑΛΟΝΙΚΗ)",3,0.49423393739703458,null,"ΠΑΝ. ΠΕΙΡΑΙΩΣ",2,0.32948929159802304]
["ΔΙΟΙΚΗΣΗΣ ΣΥΣΤΗΜΑΤΩΝ ΕΦΟΔΙΑΣΜΟΥ (ΚΑΤΕΡΙΝΗ)",1,null,"","",null,null,null,"ΔΙΟΙΚΗΣΗΣ ΕΠΙΧΕΙΡΗΣΕΩΝ (ΘΕΣΣΑΛΟΝΙΚΗ) - ΔΙΟΙΚΗΣΗ ΤΟΥΡΙΣΤΙΚΩΝ ΕΠΙΧΕΙΡΗΣΕΩΝ ΚΑΙ ΕΠΙΧΕΙΡΗΣΕΩΝ ΦΙΛΟΞΕΝΙΑΣ",3,0.49423393739703458,null,"ΤΕΙ ΙΟΝΙΩΝ ΝΗΣΩΝ",2,0.32948929159802304]
["ΔΙΑΧΕΙΡΙΣΗΣ ΠΕΡΙΒΑΛΛΟΝΤΟΣ & ΦΥΣΙΚΩΝ ΠΟΡΩΝ (ΑΓΡΙΝΙΟ)",2,null,"","",null,null,null,"ΠΟΛΙΤΙΚΩΝ ΜΗΧΑΝΙΚΩΝ Τ.Ε. ΚΑΙ ΜΗΧΑΝΙΚΩΝ ΤΟΠΟΓΡΑΦΙΑΣ & ΓΕΩΠΛΗΡΟΦΟΡΙΚΗΣ Τ.Ε. (ΣΕΡΡΕΣ) - ΠΟΛΙΤΙΚΩΝ ΜΗΧΑΝΙΚΩΝ Τ.Ε.",3,0.49423393739703458,null,"ΑΕΑ ΘΕΣ/ΝΙΚΗΣ",1,0.16474464579901152]
["ΜΑΘΗΜΑΤΙΚΩΝ (ΣΑΜΟΣ) - ΣΤΑΤΙΣΤΙΚΗΣ ΚΑΙ ΑΝΑΛΟΓΙΣΤΙΚΩΝ-ΧΡΗΜΑΤΟΟΙΚΟΝΟΜΙΚΩΝ ΜΑΘΗΜΑΤΙΚΩΝ",1,null,"","",null,null,null,"ΕΠΙΣΤΗΜΗΣ ΤΡΟΦΙΜΩΝ & ΔΙΑΤΡΟΦΗΣ (ΛΗΜΝΟΣ)",3,0.49423393739703458,null,"ΑΕΑ ΑΘΗΝΑΣ",1,0.16474464579901152]
["ΚΛΩΣΤΟΫΦΑΝΤΟΥΡΓΩΝ ΜΗΧΑΝΙΚΩΝ Τ.Ε. (ΠΕΙΡΑΙΑΣ)",1,null,"","",null,null,null,"ΔΙΑΧΕΙΡΙΣΗΣ ΠΕΡΙΒΑΛΛΟΝΤΟΣ & ΦΥΣΙΚΩΝ ΠΟΡΩΝ (ΑΓΡΙΝΙΟ)",3,0.49423393739703458,null,"ΑΣΠΑΙΤΕ",1,0.16474464579901152]
["ΙΣΤΟΡΙΑΣ & ΑΡΧΑΙΟΛΟΓΙΑΣ (ΘΕΣΣΑΛΟΝΙΚΗ)",2,null,"","",null,null,null,"ΚΙΝΗΜΑΤΟΓΡΑΦΟΥ (ΘΕΣΣΑΛΟΝΙΚΗ)",3,0.49423393739703458,null,"ΠΑΝΤΕΙΟ",2,0.32948929159802304]
["ΙΑΤΡΙΚΗΣ (ΗΡΑΚΛΕΙΟ)",1,null,"","",null,null,null,"ΚΟΙΝΩΝΙΚΗΣ ΔΙΟΙΚΗΣΗΣ ΚΑΙ ΠΟΛΙΤΙΚΗΣ ΕΠΙΣΤΗΜΗΣ (ΚΟΜΟΤΗΝΗ) - ΠΟΛΙΤΙΚΗΣ ΕΠΙΣΤΗΜΗΣ",3,0.49423393739703458,null,"ΑΣΚΤ",1,0.16474464579901152]
["ΝΟΣΗΛΕΥΤΙΚΗΣ (ΑΘΗΝΑ)",1,null,"","",null,null,null,"ΠΛΗΡΟΦΟΡΙΚΗΣ (ΛΑΜΙΑ)",3,0.49423393739703458,null,"",""]
["ΓΕΩΠΟΝΙΑΣ, ΙΧΘΥΟΛΟΓΙΑΣ ΚΑΙ ΥΔΑΤΙΝΟΥ ΠΕΡΙΒΑΛΛΟΝΤΟΣ (ΒΟΛΟΣ)",1,null,"","",null,null,null,"ΜΟΡΙΑΚΗΣ ΒΙΟΛΟΓΙΑΣ & ΓΕΝΕΤΙΚΗΣ (ΑΛΕΞΑΝΔΡΟΥΠΟΛΗ)",3,0.49423393739703458]
["ΝΟΣΗΛΕΥΤΙΚΗΣ (ΛΑΜΙΑ)",1,null,"","",null,null,null,"ΑΡΧΙΤΕΚΤΟΝΩΝ ΜΗΧΑΝΙΚΩΝ (ΞΑΝΘΗ) ",3,0.49423393739703458]
["ΒΙΟΛΟΓΙΑΣ (ΠΑΤΡΑ)",1,null,"","",null,null,null,"ΔΑΣΟΠΟΝΙΑΣ & ΔΙΑΧΕΙΡΙΣΗΣ ΦΥΣΙΚΟΥ ΠΕΡΙΒΑΛΛΟΝΤΟΣ (ΔΡΑΜΑ)",3,0.49423393739703458]
["ΛΟΓΟΘΕΡΑΠΕΙΑΣ (ΙΩΑΝΝΙΝΑ)",1,null,"","",null,null,null,"ΤΕΧΝΟΛΟΓΩΝ ΓΕΩΠΟΝΩΝ (ΦΛΩΡΙΝΑ)",3,0.49423393739703458]
["ΑΡΧΙΤΕΚΤΟΝΩΝ ΜΗΧΑΝΙΚΩΝ (ΒΟΛΟΣ)",1,null,"","",null,null,null,"ΕΠΙΣΤΗΜΗΣ & ΤΕΧΝΟΛΟΓΙΑΣ ΥΛΙΚΩΝ (ΗΡΑΚΛΕΙΟ)",3,0.49423393739703458]
["ΓΕΩΠΟΝΙΑΣ (ΘΕΣΣΑΛΟΝΙΚΗ)",1,null,"","",null,null,null,"ΜΗΧΑΝΙΚΩΝ ΣΧΕΔΙΑΣΗΣ ΠΡΟΪΟΝΤΩΝ ΚΑΙ ΣΥΣΤΗΜΑΤΩΝ (ΣΥΡΟΣ)",3,0.49423393739703458]
["ΤΕΧΝΟΛΟΓΩΝ ΓΕΩΠΟΝΩΝ (ΘΕΣΣΑΛΟΝΙΚΗ) ",1,null,"","",null,null,null,"ΕΠΙΣΤΗΜΗΣ ΦΥΣΙΚΗΣ ΑΓΩΓΗΣ ΚΑΙ ΑΘΛΗΤΙΣΜΟΥ (ΣΕΡΡΕΣ)",3,0.49423393739703458]
["ΘΕΟΛΟΓΙΑΣ (ΘΕΣΣΑΛΟΝΙΚΗ)",1,null,"","",null,null,null,"ΤΕΧΝΟΛΟΓΩΝ ΓΕΩΠΟΝΩΝ (ΗΡΑΚΛΕΙΟ) ",3,0.49423393739703458]
["ΜΗΧΑΝΟΛΟΓΩΝ ΜΗΧΑΝΙΚΩΝ ΚΑΙ ΒΙΟΜΗΧΑΝΙΚΟΥ ΣΧΕΔΙΑΣΜΟΥ Τ.Ε. (ΚΟΖΑΝΗ) - ΜΗΧΑΝΟΛΟΓΩΝ ΜΗΧΑΝΙΚΩΝ Τ.Ε.",1,null,"","",null,null,null,"ΔΙΟΙΚΗΣΗΣ ΕΠΙΧΕΙΡΗΣΕΩΝ (ΚΑΒΑΛΑ)",3,0.49423393739703458]
["ΤΕΧΝΟΛΟΓΙΑΣ ΤΡΟΦΙΜΩΝ (ΘΕΣΣΑΛΟΝΙΚΗ)",1,null,"","",null,null,null,"ΧΗΜΕΙΑΣ (ΙΩΑΝΝΙΝΑ)",3,0.49423393739703458]
["ΕΦΑΡΜΟΣΜΕΝΗΣ ΠΛΗΡΟΦΟΡΙΚΗΣ (ΘΕΣΣΑΛΟΝΙΚΗ)",1,null,"","",null,null,null,"ΜΗΧΑΝΙΚΩΝ ΟΙΚΟΝΟΜΙΑΣ ΚΑΙ ΔΙΟΙΚΗΣΗΣ (ΧΙΟΣ)",3,0.49423393739703458]
["ΠΡΟΣΧΟΛΙΚΗΣ ΑΓΩΓΗΣ (ΘΕΣΣΑΛΟΝΙΚΗ)",1,null,"","",null,null,null,"ΜΗΧΑΝΙΚΩΝ ΗΛΕΚΤΡΟΝΙΚΩΝ ΥΠΟΛΟΓΙΣΤΩΝ ΚΑΙ ΠΛΗΡΟΦΟΡΙΚΗΣ (ΙΩΑΝΝΙΝΑ)",3,0.49423393739703458]
["ΛΟΓΙΣΤΙΚΗΣ & ΧΡΗΜΑΤΟΟΙΚΟΝΟΜΙΚΗΣ (ΘΕΣΣΑΛΟΝΙΚΗ)",3,null,"","",null,null,null,"ΠΑΙΔΑΓΩΓΙΚΟ ΕΙΔΙΚΗΣ ΑΓΩΓΗΣ (ΒΟΛΟΣ)",3,0.49423393739703458]
["ΚΟΙΝΩΝΙΚΗΣ ΔΙΟΙΚΗΣΗΣ ΚΑΙ ΠΟΛΙΤΙΚΗΣ ΕΠΙΣΤΗΜΗΣ (ΚΟΜΟΤΗΝΗ) -ΚΟΙΝΩΝΙΚΗΣ ΔΙΟΙΚΗΣΗΣ ",1,null,"","",null,null,null,"ΟΙΚΟΝΟΜΙΚΩΝ ΕΠΙΣΤΗΜΩΝ (ΘΕΣΣΑΛΟΝΙΚΗ)",3,0.49423393739703458]
["ΚΙΝΗΜΑΤΟΓΡΑΦΟΥ (ΘΕΣΣΑΛΟΝΙΚΗ)",1,null,"","",null,null,null,"ΕΠΙΣΤΗΜΗΣ ΦΥΣΙΚΗΣ ΑΓΩΓΗΣ ΚΑΙ ΑΘΛΗΤΙΣΜΟΥ (ΚΟΜΟΤΗΝΗ)",3,0.49423393739703458]
["ΔΙΟΙΚΗΣΗΣ ΕΠΙΧΕΙΡΗΣΕΩΝ (ΓΡΕΒΕΝΑ) - ΔΙΟΙΚΗΣΗ ΤΟΥΡΙΣΤΙΚΩΝ ΕΠΙΧΕΙΡΗΣΕΩΝ ΚΑΙ ΕΠΙΧΕΙΡΗΣΕΩΝ ΦΙΛΟΞΕΝΙΑΣ ",1,null,"","",null,null,null,"ΦΑΡΜΑΚΕΥΤΙΚΗΣ (ΘΕΣΣΑΛΟΝΙΚΗ)",3,0.49423393739703458]
["ΦΙΛΟΛΟΓΙΑΣ (ΙΩΑΝΝΙΝΑ)",1,null,"","",null,null,null,"ΝΟΜΙΚΗΣ (ΘΕΣΣΑΛΟΝΙΚΗ)",3,0.49423393739703458]
["ΒΙΟΛΟΓΙΑΣ (ΘΕΣΣΑΛΟΝΙΚΗ)",1,null,"","",null,null,null,"ΜΗΧΑΝΙΚΩΝ ΠΛΗΡΟΦΟΡΙΑΚΩΝ & ΕΠΙΚΟΙΝΩΝΙΑΚΩΝ ΣΥΣΤΗΜΑΤΩΝ (ΣΑΜΟΣ)",3,0.49423393739703458]
["ΕΥΕΛΠΙΔΩΝ (ΣΣΕ) - ΟΠΛΑ",1,null,"","",null,null,null,"ΜΗΧΑΝΟΛΟΓΩΝ ΜΗΧΑΝΙΚΩΝ ΚΑΙ ΒΙΟΜΗΧΑΝΙΚΟΥ ΣΧΕΔΙΑΣΜΟΥ Τ.Ε. (ΚΟΖΑΝΗ) - ΒΙΟΜΗΧΑΝΙΚΟΥ ΣΧΕΔΙΑΣΜΟΥ Τ.Ε.",3,0.49423393739703458]
["ΜΗΧΑΝΟΛΟΓΩΝ ΟΧΗΜΑΤΩΝ Τ.Ε. (ΘΕΣΣΑΛΟΝΙΚΗ)",1,null,"","",null,null,null,"ΕΠΙΣΤΗΜΗΣ ΦΥΣΙΚΗΣ ΑΓΩΓΗΣ ΚΑΙ ΑΘΛΗΤΙΣΜΟΥ (ΘΕΣΣΑΛΟΝΙΚΗ)",3,0.49423393739703458]
["ΛΟΓΙΣΤΙΚΗΣ ΚΑΙ ΧΡΗΜΑΤΟΟΙΚΟΝΟΜΙΚΗΣ (ΚΟΖΑΝΗ) ",1,null,"","",null,null,null,"ΠΟΛΙΤΙΚΗΣ ΕΠΙΣΤΗΜΗΣ (ΡΕΘΥΜΝΟ)",3,0.49423393739703458]
["ΗΛΕΚΤΡΟΛΟΓΩΝ ΜΗΧΑΝΙΚΩΝ & ΜΗΧΑΝΙΚΩΝ ΥΠΟΛΟΓΙΣΤΩΝ (ΞΑΝΘΗ)",2,null,"","",null,null,null,"ΜΑΙΕΥΤΙΚΗΣ (ΠΤΟΛΕΜΑΪΔΑ)",3,{"$f":"J68/607%","v":0.49423393739703458}]
["ΚΟΙΝΩΝΙΚΗΣ ΔΙΟΙΚΗΣΗΣ ΚΑΙ ΠΟΛΙΤΙΚΗΣ ΕΠΙΣΤΗΜΗΣ (ΚΟΜΟΤΗΝΗ) - ΠΟΛΙΤΙΚΗΣ ΕΠΙΣΤΗΜΗΣ",1,null,"","",null,null,null,"ΕΛΛΗΝΙΚΗΣ ΦΙΛΟΛΟΓΙΑΣ (ΚΟΜΟΤΗΝΗ)",2,0.32948929159802304]
["ΜΗΧΑΝΙΚΩΝ ΠΛΗΡΟΦΟΡΙΚΗΣ Τ.Ε. (ΛΑΡΙΣΑ)",1,null,"","",null,null,null,"ΠΛΗΡΟΦΟΡΙΚΗΣ ΜΕ ΕΦΑΡΜΟΓΕΣ ΣΤΗ ΒΙΟΪΑΤΡΙΚΗ (ΛΑΜΙΑ)",2,0.32948929159802304]
["ΠΛΗΡΟΦΟΡΙΚΗΣ (ΛΑΜΙΑ)",2,null,"","",null,null,null,"ΜΗΧΑΝΙΚΩΝ ΧΩΡΟΤΑΞΙΑΣ & ΑΝΑΠΤΥΞΗΣ (ΘΕΣΣΑΛΟΝΙΚΗ)",2,0.32948929159802304]
["ΔΙΟΙΚΗΣΗΣ ΕΠΙΧΕΙΡΗΣΕΩΝ (ΧΙΟΣ)",1,null,"","",null,null,null,"ΜΕΘΟΔΟΛΟΓΙΑΣ, ΙΣΤΟΡΙΑΣ & ΘΕΩΡΙΑΣ ΤΗΣ ΕΠΙΣΤΗΜΗΣ (ΑΘΗΝΑ)",2,0.32948929159802304]
["ΗΛΕΚΤΡΟΛΟΓΩΝ ΜΗΧΑΝΙΚΩΝ & ΜΗΧΑΝΙΚΩΝ ΥΠΟΛΟΓΙΣΤΩΝ (ΑΘΗΝΑ)",1,null,"","",null,null,null,"ΜΗΧΑΝΙΚΩΝ ΠΕΡΙΒΑΛΛΟΝΤΟΣ (ΚΟΖΑΝΗ)",2,0.32948929159802304]
["ΜΗΧΑΝΟΛΟΓΩΝ ΜΗΧΑΝΙΚΩΝ Τ.Ε. (ΠΑΤΡΑ)",1,null,"","",null,null,null,"ΑΡΧΕΙΟΝΟΜΙΑΣ, ΒΙΒΛΙΟΘΗΚΟΝΟΜΙΑΣ ΚΑΙ ΜΟΥΣΕΙΟΛΟΓΙΑΣ (ΚΕΡΚΥΡΑ)",2,0.32948929159802304]
["ΔΗΜΟΣΙΟΓΡΑΦΙΑΣ & ΜΕΣΩΝ ΜΑΖΙΚΗΣ ΕΠΙΚΟΙΝΩΝΙΑΣ (ΘΕΣΣΑΛΟΝΙΚΗ)",1,null,"","",null,null,null,"ΠΛΑΣΤΙΚΩΝ ΤΕΧΝΩΝ & ΕΠΙΣΤΗΜΩΝ ΤΗΣ ΤΕΧΝΗΣ (ΙΩΑΝΝΙΝΑ)",2,0.32948929159802304]
["ΜΗΧΑΝΟΛΟΓΩΝ ΜΗΧΑΝΙΚΩΝ Τ.Ε. (ΣΕΡΡΕΣ) ",1,null,"","",null,null,null,"ΠΟΛΙΤΙΚΩΝ ΕΠΙΣΤΗΜΩΝ (ΘΕΣΣΑΛΟΝΙΚΗ) ",2,0.32948929159802304]
["ΓΡΑΦΙΣΤΙΚΗΣ (ΑΘΗΝΑ) - ΤΕΧΝΟΛΟΓΙΑΣ ΓΡΑΦΙΚΩΝ ΤΕΧΝΩΝ",1,null,"","",null,null,null,"ΦΥΣΙΚΗΣ (ΑΘΗΝΑ)",2,0.32948929159802304]
["ΠΟΛΙΤΙΚΩΝ ΜΗΧΑΝΙΚΩΝ (ΞΑΝΘΗ)",1,null,"","",null,null,null,"ΔΙΟΙΚΗΣΗΣ ΣΥΣΤΗΜΑΤΩΝ ΕΦΟΔΙΑΣΜΟΥ (ΚΑΤΕΡΙΝΗ)",2,0.32948929159802304]
["ΜΑΘΗΜΑΤΙΚΩΝ (ΙΩΑΝΝΙΝΑ)",1,null,"","",null,null,null,"ΙΑΤΡΙΚΗΣ (ΗΡΑΚΛΕΙΟ)",2,0.32948929159802304]
["ΗΛΕΚΤΡΟΛΟΓΩΝ ΜΗΧΑΝΙΚΩΝ Τ.Ε. (ΠΑΤΡΑ)",1,null,"","",null,null,null,"ΓΕΩΠΟΝΙΑΣ, ΙΧΘΥΟΛΟΓΙΑΣ ΚΑΙ ΥΔΑΤΙΝΟΥ ΠΕΡΙΒΑΛΛΟΝΤΟΣ (ΒΟΛΟΣ)",2,0.32948929159802304]
["ΗΛΕΚΤΡΟΛΟΓΩΝ ΜΗΧΑΝΙΚΩΝ ΚΑΙ ΜΗΧΑΝΙΚΩΝ ΥΠΟΛΟΓΙΣΤΩΝ (ΒΟΛΟΣ)",1,null,"","",null,null,null,"ΝΟΣΗΛΕΥΤΙΚΗΣ (ΛΑΜΙΑ)",2,0.32948929159802304]
["ΠΛΗΡΟΦΟΡΙΚΗΣ (ΚΕΡΚΥΡΑ)",1,null,"","",null,null,null,"ΓΕΩΠΟΝΙΑΣ (ΘΕΣΣΑΛΟΝΙΚΗ)",2,0.32948929159802304]
["ΚΤΗΝΙΑΤΡΙΚΗΣ (ΘΕΣΣΑΛΟΝΙΚΗ)",1,null,"","",null,null,null,"ΤΕΧΝΟΛΟΓΩΝ ΓΕΩΠΟΝΩΝ (ΘΕΣΣΑΛΟΝΙΚΗ) ",2,0.32948929159802304]
["ΜΟΡΙΑΚΗΣ ΒΙΟΛΟΓΙΑΣ & ΓΕΝΕΤΙΚΗΣ (ΑΛΕΞΑΝΔΡΟΥΠΟΛΗ)",1,null,"","",null,null,null,"ΒΙΟΛΟΓΙΑΣ (ΘΕΣΣΑΛΟΝΙΚΗ)",2,0.32948929159802304]
["ΜΗΧΑΝΙΚΩΝ ΠΛΗΡΟΦΟΡΙΚΗΣ Τ.Ε. (ΚΑΒΑΛΑ) ",1,null,"","",null,null,null,"ΔΙΟΙΚΗΣΗΣ ΕΠΙΧΕΙΡΗΣΕΩΝ (ΧΙΟΣ)",2,0.32948929159802304]
["ΑΡΧΙΤΕΚΤΟΝΩΝ ΜΗΧΑΝΙΚΩΝ (ΞΑΝΘΗ) ",1,null,"","",null,null,null,"ΜΗΧΑΝΟΛΟΓΩΝ ΜΗΧΑΝΙΚΩΝ Τ.Ε. (ΠΑΤΡΑ)",2,0.32948929159802304]
["ΝΟΣΗΛΕΥΤΙΚΗΣ (ΙΩΑΝΝΙΝΑ)",1,null,"","",null,null,null,"ΠΟΛΙΤΙΚΩΝ ΜΗΧΑΝΙΚΩΝ (ΞΑΝΘΗ)",2,0.32948929159802304]
["ΚΟΙΝΩΝΙΟΛΟΓΙΑΣ (ΡΕΘΥΜΝΟ)",1,null,"","",null,null,null,"ΗΛΕΚΤΡΟΛΟΓΩΝ ΜΗΧΑΝΙΚΩΝ Τ.Ε. (ΠΑΤΡΑ)",2,0.32948929159802304]
["ΦΥΣΙΚΟΘΕΡΑΠΕΙΑΣ (ΛΑΜΙΑ)",1,null,"","",null,null,null,"ΗΛΕΚΤΡΟΛΟΓΩΝ ΜΗΧΑΝΙΚΩΝ ΚΑΙ ΜΗΧΑΝΙΚΩΝ ΥΠΟΛΟΓΙΣΤΩΝ (ΒΟΛΟΣ)",2,0.32948929159802304]
["ΟΔΟΝΤΙΑΤΡΙΚΗΣ (ΘΕΣΣΑΛΟΝΙΚΗ)",1,null,"","",null,null,null,"ΠΛΗΡΟΦΟΡΙΚΗΣ (ΚΕΡΚΥΡΑ)",2,0.32948929159802304]
["ΦΙΛΟΣΟΦΙΑΣ - ΠΑΙΔΑΓΩΓΙΚΗΣ & ΨΥΧΟΛΟΓΙΑΣ (ΑΘΗΝΑ)",1,null,"","",null,null,null,"ΚΤΗΝΙΑΤΡΙΚΗΣ (ΘΕΣΣΑΛΟΝΙΚΗ)",2,0.32948929159802304]
["ΣΧΟΛΗ ΜΗΧΑΝΙΚΩΝ",1,null,"","",null,null,null,"ΝΟΣΗΛΕΥΤΙΚΗΣ (ΙΩΑΝΝΙΝΑ)",2,0.32948929159802304]
["ΔΑΣΟΠΟΝΙΑΣ & ΔΙΑΧΕΙΡΙΣΗΣ ΦΥΣΙΚΟΥ ΠΕΡΙΒΑΛΛΟΝΤΟΣ (ΔΡΑΜΑ)",1,null,"","",null,null,null,"ΦΥΣΙΚΟΘΕΡΑΠΕΙΑΣ (ΛΑΜΙΑ)",2,0.32948929159802304]
["ΛΟΓΙΣΤΙΚΗΣ ΚΑΙ ΧΡΗΜΑΤΟΟΙΚΟΝΟΜΙΚΗΣ (ΚΑΛΑΜΑΤΑ)",1,null,"","",null,null,null,"ΣΧΟΛΗ ΜΗΧΑΝΙΚΩΝ",2,0.32948929159802304]
["ΠΟΛΙΤΙΚΩΝ ΜΗΧΑΝΙΚΩΝ (ΑΘΗΝΑ) ",1,null,"","",null,null,null,"ΠΟΛΙΤΙΚΩΝ ΜΗΧΑΝΙΚΩΝ (ΑΘΗΝΑ) ",2,0.32948929159802304]
["ΙΑΤΡΙΚΗΣ (ΑΛΕΞΑΝΔΡΟΥΠΟΛΗ)",1,null,"","",null,null,null,"ΑΡΧΙΤΕΚΤΟΝΩΝ ΜΗΧΑΝΙΚΩΝ (ΘΕΣΣΑΛΟΝΙΚΗ)",2,0.32948929159802304]
["ΤΕΧΝΟΛΟΓΩΝ ΓΕΩΠΟΝΩΝ (ΦΛΩΡΙΝΑ)",1,null,"","",null,null,null,"ΨΥΧΟΛΟΓΙΑΣ (ΘΕΣΣΑΛΟΝΙΚΗ)",2,0.32948929159802304]
["ΑΓΡΟΝΟΜΩΝ & ΤΟΠΟΓΡΑΦΩΝ ΜΗΧΑΝΙΚΩΝ (ΘΕΣΣΑΛΟΝΙΚΗ)",1,null,"","",null,null,null,"ΒΙΟΛΟΓΙΑΣ (ΑΘΗΝΑ)",2,0.32948929159802304]
["","",null,"","",null,null,null,"ΤΕΧΝΟΛΟΓΩΝ ΓΕΩΠΟΝΩΝ (ΛΑΡΙΣΑ)",2,0.32948929159802304]
["","",null,"","",null,null,null,"ΦΥΣΙΚΟΘΕΡΑΠΕΙΑΣ (ΘΕΣΣΑΛΟΝΙΚΗ)",2,0.32948929159802304]
[null,null,null,null,null,null,null,null,"ΜΗΧΑΝΙΚΩΝ ΠΕΡΙΒΑΛΛΟΝΤΟΣ ΚΑΙ ΜΗΧΑΝΙΚΩΝ ΑΝΤΙΡΡΥΠΑΝΣΗΣ Τ.Ε. (ΚΟΖΑΝΗ) - ΜΗΧΑΝΙΚΩΝ ΑΝΤΙΡΡΥΠΑΝΣΗΣ Τ.Ε.",2,0.32948929159802304]
[null,null,null,null,null,null,null,null,"ΠΟΛΙΤΙΚΩΝ ΜΗΧΑΝΙΚΩΝ Τ.Ε. ΚΑΙ ΜΗΧΑΝΙΚΩΝ ΤΟΠΟΓΡΑΦΙΑΣ & ΓΕΩΠΛΗΡΟΦΟΡΙΚΗΣ Τ.Ε. (ΣΕΡΡΕΣ) - ΜΗΧΑΝΙΚΩΝ ΤΟΠΟΓΡΑΦΙΑΣ & ΓΕΩΠΛΗΡΟΦΟΡΙΚΗΣ Τ.Ε.",2,0.32948929159802304]
[null,null,null,null,null,null,null,null,"ΔΙΑΤΡΟΦΗΣ & ΔΙΑΙΤΟΛΟΓΙΑΣ (ΘΕΣΣΑΛΟΝΙΚΗ)",2,0.32948929159802304]
[null,null,null,null,null,null,null,null,"ΣΧΟΛΗ ΠΥΡΟΣΒΕΣΤΩΝ (ΜΟΝΟ ΓΙΑ ΠΟΛΙΤΕΣ)",2,0.32948929159802304]
[null,null,null,null,null,null,null,null,"ΜΗΧΑΝΙΚΩΝ ΤΕΧΝΟΛΟΓΙΑΣ ΑΕΡΟΣΚΑΦΩΝ Τ.Ε. (ΧΑΛΚΙΔΑ)",2,0.32948929159802304]
["2 ΓΕΛ",null,null,null,null,null,null,null,"ΓΕΡΜΑΝΙΚΗΣ ΓΛΩΣΣΑΣ ΚΑΙ ΦΙΛΟΛΟΓΙΑΣ (ΘΕΣΣΑΛΟΝΙΚΗ)",2,0.32948929159802304]
["C:\\temp\\[stat-B44.xlsm]2 ΓΕΛ.xls",null,null,null,null,null,null,null,"ΔΑΣΟΠΟΝΙΑΣ & ΔΙΑΧΕΙΡΙΣΗΣ ΦΥΣΙΚΟΥ ΠΕΡΙΒΑΛΛΟΝΤΟΣ (ΚΑΡΠΕΝΗΣΙ) ",2,0.32948929159802304]
["ΔΙΟΙΚΗΣΗΣ ΕΠΙΧΕΙΡΗΣΕΩΝ (ΘΕΣΣΑΛΟΝΙΚΗ) - ΔΙΟΙΚΗΣΗ ΤΟΥΡΙΣΤΙΚΩΝ ΕΠΙΧΕΙΡΗΣΕΩΝ ΚΑΙ ΕΠΙΧΕΙΡΗΣΕΩΝ ΦΙΛΟΞΕΝΙΑΣ",1,null,"ΤΕΙ ΘΕΣ/ΚΗΣ",5,null,null,null,"ΘΕΑΤΡΙΚΩΝ ΣΠΟΥΔΩΝ (ΝΑΥΠΛΙΟ)",2,0.32948929159802304]
["ΟΙΚΟΝΟΜΙΚΩΝ ΕΠΙΣΤΗΜΩΝ (ΚΟΜΟΤΗΝΗ)",1,null,"ΔΗΜ. ΠΑΝ. ΘΡΑΚΗΣ",29,null,null,null,"ΘΕΑΤΡΟΥ (ΘΕΣΣΑΛΟΝΙΚΗ)",2,0.32948929159802304]
["ΕΠΙΣΤΗΜΗΣ & ΤΕΧΝΟΛΟΓΙΑΣ ΥΛΙΚΩΝ (ΗΡΑΚΛΕΙΟ)",1,null,"ΠΑΝ. ΚΡΗΤΗΣ",2,null,null,null,"ΒΙΟΛΟΓΙΑΣ (ΗΡΑΚΛΕΙΟ)",2,0.32948929159802304]
["ΜΗΧΑΝΙΚΩΝ ΠΕΡΙΒΑΛΛΟΝΤΟΣ (ΞΑΝΘΗ) ",5,null,"ΤΕΙ ΘΕΣΣΑΛΙΑΣ",5,null,null,null,"ΧΗΜΕΙΑΣ (ΘΕΣΣΑΛΟΝΙΚΗ)",2,0.32948929159802304]
["ΠΟΛΙΤΙΚΩΝ ΜΗΧΑΝΙΚΩΝ Τ.Ε. (ΛΑΡΙΣΑ)",1,null,"ΤΕΙ ΑΝΑΤ. ΜΑΚ/ΝΙΑΣ & ΘΡΑΚΗΣ",27,null,null,null,"ΙΑΤΡΙΚΩΝ ΕΡΓΑΣΤΗΡΙΩΝ (ΘΕΣΣΑΛΟΝΙΚΗ)",2,0.32948929159802304]
["ΜΗΧΑΝΙΚΩΝ ΤΕΧΝΟΛΟΓΙΑΣ ΠΕΤΡΕΛΑΙΟΥ & ΦΥΣΙΚΟΥ ΑΕΡΙΟΥ Τ.Ε. ΚΑΙ ΜΗΧΑΝΟΛΟΓΩΝ ΜΗΧΑΝΙΚΩΝ Τ.Ε. (ΚΑΒΑΛΑ) - ΜΗΧΑΝΙΚΩΝ ΤΕΧΝΟΛΟΓΙΑΣ ΠΕΤΡΕΛΑΙΟΥ ΚΑΙ ΦΥΣΙΚΟΥ ΑΕΡΙΟΥ Τ.Ε.",5,null,"ΑΠΘ",22,null,null,null,"ΜΗΧΑΝΙΚΩΝ ΠΛΗΡΟΦΟΡΙΚΗΣ & ΤΗΛΕΠΙΚΟΙΝΩΝΙΩΝ (ΚΟΖΑΝΗ)",2,0.32948929159802304]
["ΑΡΧΙΤΕΚΤΟΝΩΝ ΜΗΧΑΝΙΚΩΝ (ΘΕΣΣΑΛΟΝΙΚΗ)",2,null,"ΤΕΙ ΚΡΗΤΗΣ",3,null,null,null,"ΜΕΣΟΓΕΙΑΚΩΝ ΣΠΟΥΔΩΝ (ΡΟΔΟΣ)",2,0.32948929159802304]
["ΚΟΙΝΩΝΙΚΗΣ ΔΙΟΙΚΗΣΗΣ ΚΑΙ ΠΟΛΙΤΙΚΗΣ ΕΠΙΣΤΗΜΗΣ (ΚΟΜΟΤΗΝΗ) -ΚΟΙΝΩΝΙΚΗΣ ΔΙΟΙΚΗΣΗΣ ",3,null,"ΠΑΝ. ΑΙΓΑΙΟΥ",11,null,null,null,"ΚΤΗΝΙΑΤΡΙΚΗΣ (ΚΑΡΔΙΤΣΑ)",2,0.32948929159802304]
["ΜΗΧΑΝΙΚΩΝ ΤΕΧΝΟΛΟΓΙΑΣ ΠΕΤΡΕΛΑΙΟΥ & ΦΥΣΙΚΟΥ ΑΕΡΙΟΥ Τ.Ε. ΚΑΙ ΜΗΧΑΝΟΛΟΓΩΝ ΜΗΧΑΝΙΚΩΝ Τ.Ε. (ΚΑΒΑΛΑ) - ΜΗΧΑΝΟΛΟΓΩΝ ΜΗΧΑΝΙΚΩΝ Τ.Ε.",10,null,"ΕΚΠΑ",2,null,null,null,"ΝΟΣΗΛΕΥΤΙΚΗΣ (ΔΙΔΥΜΟΤΕΙΧΟ)",2,0.32948929159802304]
["ΜΗΧΑΝΙΚΩΝ ΜΟΥΣΙΚΗΣ ΤΕΧΝΟΛΟΓΙΑΣ ΚΑΙ ΑΚΟΥΣΤΙΚΗΣ Τ.Ε. (ΡΕΘΥΜΝΟ)",1,null,"ΠΑΝ. ΙΩΑΝΝΙΝΩΝ",5,null,null,null,"ΠΛΗΡΟΦΟΡΙΚΗΣ (ΘΕΣΣΑΛΟΝΙΚΗ)",2,0.32948929159802304]
["ΑΓΓΛΙΚΗΣ ΓΛΩΣΣΑΣ ΚΑΙ ΦΙΛΟΛΟΓΙΑΣ (ΘΕΣΣΑΛΟΝΙΚΗ)",3,null,"ΤΕΙ ΔΥΤ. ΜΑΚ/ΝΙΑΣ",5,null,null,null,"ΠΑΙΔΑΓΩΓΙΚΟ ΝΗΠΙΑΓΩΓΩΝ (ΦΛΩΡΙΝΑ)",2,0.32948929159802304]
["ΓΕΩΓΡΑΦΙΑΣ (ΜΥΤΙΛΗΝΗ)",2,null,"ΣΣΑΣ",1,null,null,null,"ΧΗΜΙΚΩΝ ΜΗΧΑΝΙΚΩΝ (ΘΕΣΣΑΛΟΝΙΚΗ)",2,0.32948929159802304]
["ΕΠΙΣΤΗΜΗΣ ΥΠΟΛΟΓΙΣΤΩΝ (ΗΡΑΚΛΕΙΟ)",1,null,"ΤΕΙ ΚΕΝΤΡ ΜΑΚ/ΝΙΑΣ",3,null,null,null,"ΦΥΣΙΚΗΣ (ΙΩΑΝΝΙΝΑ)",2,0.32948929159802304]
["ΜΗΧΑΝΙΚΩΝ ΣΧΕΔΙΑΣΗΣ ΠΡΟΪΟΝΤΩΝ ΚΑΙ ΣΥΣΤΗΜΑΤΩΝ (ΣΥΡΟΣ)",1,null,"ΠΑΝ. ΠΑΤΡΩΝ",1,null,null,null,"ΙΑΤΡΙΚΗΣ (ΑΘΗΝΑ)",2,0.32948929159802304]
["ΑΓΡΟΤΙΚΗΣ ΑΝΑΠΤΥΞΗΣ (ΟΡΕΣΤΙΑΔΑ) ",2,null,"ΠΑΝ. ΘΕΣΣΑΛΙΑΣ",4,null,null,null,"ΝΟΣΗΛΕΥΤΙΚΗΣ (ΘΕΣΣΑΛΟΝΙΚΗ)",2,0.32948929159802304]
["ΨΥΧΟΛΟΓΙΑΣ (ΘΕΣΣΑΛΟΝΙΚΗ)",1,null,"ΑΣΤΥΝ ΣΧΟΛ",2,null,null,null,"ΗΛΕΚΤΡΟΛΟΓΩΝ ΜΗΧΑΝΙΚΩΝ Τ.Ε. (ΚΟΖΑΝΗ)",2,0.32948929159802304]
["ΗΛΕΚΤΡΟΛΟΓΩΝ ΜΗΧΑΝΙΚΩΝ Τ.Ε. (ΚΑΒΑΛΑ)",2,null,"ΠΥΡΟΣΒ ΑΚΑΔ",1,null,null,null,"ΜΗΧΑΝΙΚΩΝ ΠΛΗΡΟΦΟΡΙΚΗΣ Τ.Ε. (ΣΕΡΡΕΣ)",2,0.32948929159802304]
["ΒΙΟΛΟΓΙΑΣ (ΑΘΗΝΑ)",1,null,"ΤΕΙ  ΣΤΕΡ. ΕΛΛΑΔΑΣ",2,null,null,null,"ΦΙΛΟΣΟΦΙΑΣ (ΠΑΤΡΑ)",2,0.32948929159802304]
["ΤΕΧΝΟΛΟΓΩΝ ΓΕΩΠΟΝΩΝ (ΛΑΡΙΣΑ)",2,null,"ΠΑΝ. ΜΑΚ/ΝΙΑΣ",6,null,null,null,"ΔΑΣΟΛΟΓΙΑΣ & ΔΙΑΧΕΙΡΙΣΗΣ ΠΕΡΙΒΑΛΛΟΝΤΟΣ & ΦΥΣΙΚΩΝ ΠΟΡΩΝ (ΟΡΕΣΤΙΑΔΑ)",2,0.32948929159802304]
["ΕΠΙΣΤΗΜΗΣ ΦΥΣΙΚΗΣ ΑΓΩΓΗΣ ΚΑΙ ΑΘΛΗΤΙΣΜΟΥ (ΣΕΡΡΕΣ)",2,null,"ΙΟΝΙΟ ΠΑΝ.",1,null,null,null,"ΜΗΧΑΝΟΛΟΓΩΝ ΜΗΧΑΝΙΚΩΝ (ΒΟΛΟΣ)",2,0.32948929159802304]
["ΙΣΤΟΡΙΑΣ & ΑΡΧΑΙΟΛΟΓΙΑΣ (ΙΩΑΝΝΙΝΑ)",1,null,"ΤΕΙ ΑΘΗΝΑΣ",1,null,null,null,"ΜΟΥΣΙΚΩΝ ΣΠΟΥΔΩΝ (ΚΕΡΚΥΡΑ)",2,0.32948929159802304]
["ΤΕΧΝΟΛΟΓΩΝ ΓΕΩΠΟΝΩΝ (ΦΛΩΡΙΝΑ)",1,null,"","",null,null,null,"ΗΛΕΚΤΡΟΝΙΚΩΝ ΜΗΧΑΝΙΚΩΝ Τ.Ε. (ΘΕΣΣΑΛΟΝΙΚΗ)",1,0.16474464579901152]
["ΦΥΣΙΚΟΘΕΡΑΠΕΙΑΣ (ΘΕΣΣΑΛΟΝΙΚΗ)",1,null,"","",null,null,null,"ΜΗΧΑΝΙΚΩΝ ΑΥΤΟΜΑΤΙΣΜΟΥ Τ.Ε. (ΘΕΣΣΑΛΟΝΙΚΗ)",1,0.16474464579901152]
["ΜΑΘΗΜΑΤΙΚΩΝ (ΣΑΜΟΣ) - ΜΑΘΗΜΑΤΙΚΩΝ",1,null,"","",null,null,null,"ΜΑΘΗΜΑΤΙΚΩΝ (ΠΑΤΡΑ)",1,0.16474464579901152]
["ΙΑΤΡΙΚΗΣ (ΘΕΣΣΑΛΟΝΙΚΗ)",3,null,"","",null,null,null,"ΟΙΝΟΛΟΓΙΑΣ & ΤΕΧΝΟΛΟΓΙΑΣ ΠΟΤΩΝ (ΔΡΑΜΑ)",1,{"$f":"J132/607%","v":0.16474464579901152}]
["ΠΑΙΔΑΓΩΓΙΚΟ ΔΗΜΟΤΙΚΗΣ ΕΚΠΑΙΔΕΥΣΗΣ (ΑΛΕΞΑΝΔΡΟΥΠΟΛΗ)",6,null,"","",null,null,null,"ΔΙΟΙΚΗΣΗΣ ΕΠΙΧΕΙΡΗΣΕΩΝ ΚΑΙ ΟΡΓΑΝΙΣΜΩΝ (ΚΑΛΑΜΑΤΑ) - ΤΟΠΙΚΗΣ ΑΥΤΟΔΙΟΙΚΗΣΗΣ",1,0.16474464579901152]
["ΟΙΚΟΝΟΜΙΚΟ (ΣΣΑΣ) ΘΕΣ/ΝΙΚΗ",1,null,"","",null,null,null,"ΜΑΘΗΜΑΤΙΚΩΝ (ΣΑΜΟΣ) - ΣΤΑΤΙΣΤΙΚΗΣ ΚΑΙ ΑΝΑΛΟΓΙΣΤΙΚΩΝ-ΧΡΗΜΑΤΟΟΙΚΟΝΟΜΙΚΩΝ ΜΑΘΗΜΑΤΙΚΩΝ",1,0.16474464579901152]
["ΒΙΒΛΙΟΘΗΚΟΝΟΜΙΑΣ & ΣΥΣΤΗΜΑΤΩΝ ΠΛΗΡΟΦΟΡΗΣΗΣ (ΘΕΣΣΑΛΟΝΙΚΗ)",1,null,"","",null,null,null,"ΚΛΩΣΤΟΫΦΑΝΤΟΥΡΓΩΝ ΜΗΧΑΝΙΚΩΝ Τ.Ε. (ΠΕΙΡΑΙΑΣ)",1,0.16474464579901152]
["ΒΙΟΛΟΓΙΑΣ (ΘΕΣΣΑΛΟΝΙΚΗ)",1,null,"","",null,null,null,"ΝΟΣΗΛΕΥΤΙΚΗΣ (ΑΘΗΝΑ)",1,0.16474464579901152]
["ΠΟΛΙΤΙΚΩΝ ΜΗΧΑΝΙΚΩΝ Τ.Ε. ΚΑΙ ΜΗΧΑΝΙΚΩΝ ΤΟΠΟΓΡΑΦΙΑΣ & ΓΕΩΠΛΗΡΟΦΟΡΙΚΗΣ Τ.Ε. (ΣΕΡΡΕΣ) - ΠΟΛΙΤΙΚΩΝ ΜΗΧΑΝΙΚΩΝ Τ.Ε.",1,null,"","",null,null,null,"ΒΙΟΛΟΓΙΑΣ (ΠΑΤΡΑ)",1,0.16474464579901152]
["ΦΙΛΟΛΟΓΙΑΣ (ΠΑΤΡΑ)",1,null,"","",null,null,null,"ΛΟΓΟΘΕΡΑΠΕΙΑΣ (ΙΩΑΝΝΙΝΑ)",1,0.16474464579901152]
["ΤΕΧΝΟΛΟΓΩΝ ΓΕΩΠΟΝΩΝ (ΗΡΑΚΛΕΙΟ) ",1,null,"","",null,null,null,"ΑΡΧΙΤΕΚΤΟΝΩΝ ΜΗΧΑΝΙΚΩΝ (ΒΟΛΟΣ)",1,0.16474464579901152]
["ΕΠΙΣΤΗΜΩΝ ΤΗΣ ΠΡΟΣΧΟΛΙΚΗΣ ΑΓΩΓΗΣ & ΕΚΠΑΙΔΕΥΤΙΚΟΥ ΣΧΕΔΙΑΣΜΟΥ (ΡΟΔΟΣ)",2,null,"","",null,null,null,"ΘΕΟΛΟΓΙΑΣ (ΘΕΣΣΑΛΟΝΙΚΗ)",1,0.16474464579901152]
["ΜΗΧΑΝΙΚΩΝ ΠΕΡΙΒΑΛΛΟΝΤΟΣ ΚΑΙ ΜΗΧΑΝΙΚΩΝ ΑΝΤΙΡΡΥΠΑΝΣΗΣ Τ.Ε. (ΚΟΖΑΝΗ) - ΜΗΧΑΝΙΚΩΝ ΑΝΤΙΡΡΥΠΑΝΣΗΣ Τ.Ε.",1,null,"","",null,null,null,"ΜΗΧΑΝΟΛΟΓΩΝ ΜΗΧΑΝΙΚΩΝ ΚΑΙ ΒΙΟΜΗΧΑΝΙΚΟΥ ΣΧΕΔΙΑΣΜΟΥ Τ.Ε. (ΚΟΖΑΝΗ) - ΜΗΧΑΝΟΛΟΓΩΝ ΜΗΧΑΝΙΚΩΝ Τ.Ε.",1,0.16474464579901152]
["ΔΙΟΙΚΗΣΗΣ ΕΠΙΧΕΙΡΗΣΕΩΝ (ΚΑΒΑΛΑ)",3,null,"","",null,null,null,"ΤΕΧΝΟΛΟΓΙΑΣ ΤΡΟΦΙΜΩΝ (ΘΕΣΣΑΛΟΝΙΚΗ)",1,0.16474464579901152]
["ΠΟΛΙΤΙΚΩΝ ΜΗΧΑΝΙΚΩΝ Τ.Ε. ΚΑΙ ΜΗΧΑΝΙΚΩΝ ΤΟΠΟΓΡΑΦΙΑΣ & ΓΕΩΠΛΗΡΟΦΟΡΙΚΗΣ Τ.Ε. (ΣΕΡΡΕΣ) - ΜΗΧΑΝΙΚΩΝ ΤΟΠΟΓΡΑΦΙΑΣ & ΓΕΩΠΛΗΡΟΦΟΡΙΚΗΣ Τ.Ε.",1,null,"","",null,null,null,"ΠΡΟΣΧΟΛΙΚΗΣ ΑΓΩΓΗΣ (ΘΕΣΣΑΛΟΝΙΚΗ)",1,0.16474464579901152]
["ΝΑΥΤΙΛΙΑΣ & ΕΠΙΧΕΙΡΗΜΑΤΙΚΩΝ ΥΠΗΡΕΣΙΩΝ (ΧΙΟΣ)",1,null,"","",null,null,null,"ΔΙΟΙΚΗΣΗΣ ΕΠΙΧΕΙΡΗΣΕΩΝ (ΓΡΕΒΕΝΑ) - ΔΙΟΙΚΗΣΗ ΤΟΥΡΙΣΤΙΚΩΝ ΕΠΙΧΕΙΡΗΣΕΩΝ ΚΑΙ ΕΠΙΧΕΙΡΗΣΕΩΝ ΦΙΛΟΞΕΝΙΑΣ ",1,0.16474464579901152]
["ΧΗΜΕΙΑΣ (ΙΩΑΝΝΙΝΑ)",1,null,"","",null,null,null,"ΦΙΛΟΛΟΓΙΑΣ (ΙΩΑΝΝΙΝΑ)",1,0.16474464579901152]
["ΜΗΧΑΝΙΚΩΝ ΠΑΡΑΓΩΓΗΣ & ΔΙΟΙΚΗΣΗΣ (ΞΑΝΘΗ)",1,null,"","",null,null,null,"ΕΥΕΛΠΙΔΩΝ (ΣΣΕ) - ΟΠΛΑ",1,0.16474464579901152]
["ΔΙΑΤΡΟΦΗΣ & ΔΙΑΙΤΟΛΟΓΙΑΣ (ΘΕΣΣΑΛΟΝΙΚΗ)",1,null,"","",null,null,null,"ΛΟΓΙΣΤΙΚΗΣ ΚΑΙ ΧΡΗΜΑΤΟΟΙΚΟΝΟΜΙΚΗΣ (ΚΟΖΑΝΗ) ",1,0.16474464579901152]
["ΜΗΧΑΝΙΚΩΝ ΕΠΙΣΤΗΜΗΣ ΥΛΙΚΩΝ (ΙΩΑΝΝΙΝΑ)",1,null,"","",null,null,null,"ΜΗΧΑΝΙΚΩΝ ΠΛΗΡΟΦΟΡΙΚΗΣ Τ.Ε. (ΛΑΡΙΣΑ)",1,0.16474464579901152]
["ΓΛΩΣΣΑΣ, ΦΙΛΟΛΟΓΙΑΣ & ΠΟΛΙΤΙΣΜΟΥ ΠΑΡΕΥΞΕΙΝΙΩΝ ΧΩΡΩΝ (ΚΟΜΟΤΗΝΗ)",1,null,"","",null,null,null,"ΗΛΕΚΤΡΟΛΟΓΩΝ ΜΗΧΑΝΙΚΩΝ & ΜΗΧΑΝΙΚΩΝ ΥΠΟΛΟΓΙΣΤΩΝ (ΑΘΗΝΑ)",1,0.16474464579901152]
["ΤΕΧΝΟΛΟΓΙΑΣ ΤΡΟΦΙΜΩΝ (ΚΑΡΔΙΤΣΑ)",1,null,"","",null,null,null,"ΔΗΜΟΣΙΟΓΡΑΦΙΑΣ & ΜΕΣΩΝ ΜΑΖΙΚΗΣ ΕΠΙΚΟΙΝΩΝΙΑΣ (ΘΕΣΣΑΛΟΝΙΚΗ)",1,0.16474464579901152]
["ΦΙΛΟΛΟΓΙΑΣ (ΘΕΣΣΑΛΟΝΙΚΗ)",1,null,"","",null,null,null,"ΜΗΧΑΝΟΛΟΓΩΝ ΜΗΧΑΝΙΚΩΝ Τ.Ε. (ΣΕΡΡΕΣ) ",1,0.16474464579901152]
["ΜΗΧΑΝΙΚΩΝ ΟΙΚΟΝΟΜΙΑΣ ΚΑΙ ΔΙΟΙΚΗΣΗΣ (ΧΙΟΣ)",1,null,"","",null,null,null,"ΓΡΑΦΙΣΤΙΚΗΣ (ΑΘΗΝΑ) - ΤΕΧΝΟΛΟΓΙΑΣ ΓΡΑΦΙΚΩΝ ΤΕΧΝΩΝ",1,0.16474464579901152]
["ΠΛΗΡΟΦΟΡΙΚΗΣ (ΛΑΜΙΑ)",1,null,"","",null,null,null,"ΚΟΙΝΩΝΙΟΛΟΓΙΑΣ (ΡΕΘΥΜΝΟ)",1,0.16474464579901152]
["ΕΠΙΣΤΗΜΩΝ ΤΗΣ ΕΚΠΑΙΔΕΥΣΗΣ ΣΤΗΝ ΠΡΟΣΧΟΛΙΚΗ ΗΛΙΚΙΑ (ΑΛΕΞΑΝΔΡΟΥΠΟΛΗ)",2,null,"","",null,null,null,"ΟΔΟΝΤΙΑΤΡΙΚΗΣ (ΘΕΣΣΑΛΟΝΙΚΗ)",1,0.16474464579901152]
["ΛΟΓΙΣΤΙΚΗΣ ΚΑΙ ΧΡΗΜΑΤΟΟΙΚΟΝΟΜΙΚΗΣ (ΚΑΒΑΛΑ)",4,null,"","",null,null,null,"ΦΙΛΟΣΟΦΙΑΣ - ΠΑΙΔΑΓΩΓΙΚΗΣ & ΨΥΧΟΛΟΓΙΑΣ (ΑΘΗΝΑ)",1,0.16474464579901152]
["ΔΙΑΤΡΟΦΗΣ & ΔΙΑΙΤΟΛΟΓΙΑΣ (ΣΗΤΕΙΑ)",1,null,"","",null,null,null,"ΛΟΓΙΣΤΙΚΗΣ ΚΑΙ ΧΡΗΜΑΤΟΟΙΚΟΝΟΜΙΚΗΣ (ΚΑΛΑΜΑΤΑ)",1,0.16474464579901152]
["ΔΙΟΙΚΗΣΗΣ ΕΠΙΧΕΙΡΗΣΕΩΝ (ΧΙΟΣ)",1,null,"","",null,null,null,"ΙΑΤΡΙΚΗΣ (ΑΛΕΞΑΝΔΡΟΥΠΟΛΗ)",1,0.16474464579901152]
["ΜΗΧΑΝΙΚΩΝ ΗΛΕΚΤΡΟΝΙΚΩΝ ΥΠΟΛΟΓΙΣΤΩΝ ΚΑΙ ΠΛΗΡΟΦΟΡΙΚΗΣ (ΙΩΑΝΝΙΝΑ)",1,null,"","",null,null,null,"ΑΓΡΟΝΟΜΩΝ & ΤΟΠΟΓΡΑΦΩΝ ΜΗΧΑΝΙΚΩΝ (ΘΕΣΣΑΛΟΝΙΚΗ)",1,0.16474464579901152]
["ΑΞΙΩΜΑΤΙΚΩΝ ΕΛΛΗΝΙΚΗΣ ΑΣΤΥΝΟΜΙΑΣ (ΜΟΝΟ ΓΙΑ ΠΟΛΙΤΕΣ)",1,null,"","",null,null,null,"ΠΟΛΙΤΙΚΩΝ ΜΗΧΑΝΙΚΩΝ Τ.Ε. (ΛΑΡΙΣΑ)",1,0.16474464579901152]
["ΗΛΕΚΤΡΟΛΟΓΩΝ ΜΗΧΑΝΙΚΩΝ & ΜΗΧΑΝΙΚΩΝ ΥΠΟΛΟΓΙΣΤΩΝ (ΞΑΝΘΗ)",3,null,"","",null,null,null,"ΜΗΧΑΝΙΚΩΝ ΜΟΥΣΙΚΗΣ ΤΕΧΝΟΛΟΓΙΑΣ ΚΑΙ ΑΚΟΥΣΤΙΚΗΣ Τ.Ε. (ΡΕΘΥΜΝΟ)",1,0.16474464579901152]
["ΕΠΙΣΤΗΜΗΣ ΦΥΣΙΚΗΣ ΑΓΩΓΗΣ ΚΑΙ ΑΘΛΗΤΙΣΜΟΥ (ΤΡΙΚΑΛΑ)",1,null,"","",null,null,null,"ΕΠΙΣΤΗΜΗΣ ΥΠΟΛΟΓΙΣΤΩΝ (ΗΡΑΚΛΕΙΟ)",1,0.16474464579901152]
["ΠΟΛΙΤΙΚΩΝ ΜΗΧΑΝΙΚΩΝ (ΞΑΝΘΗ)",1,null,"","",null,null,null,"ΟΙΚΟΝΟΜΙΚΟ (ΣΣΑΣ) ΘΕΣ/ΝΙΚΗ",1,0.16474464579901152]
["ΣΧΟΛΗ ΠΥΡΟΣΒΕΣΤΩΝ (ΜΟΝΟ ΓΙΑ ΠΟΛΙΤΕΣ)",1,null,"","",null,null,null,"ΒΙΒΛΙΟΘΗΚΟΝΟΜΙΑΣ & ΣΥΣΤΗΜΑΤΩΝ ΠΛΗΡΟΦΟΡΗΣΗΣ (ΘΕΣΣΑΛΟΝΙΚΗ)",1,0.16474464579901152]
["ΨΗΦΙΑΚΩΝ ΜΕΣΩΝ & ΕΠΙΚΟΙΝΩΝΙΑΣ Τ.Ε. (ΚΑΣΤΟΡΙΑ)",1,null,"","",null,null,null,"ΦΙΛΟΛΟΓΙΑΣ (ΠΑΤΡΑ)",1,0.16474464579901152]
["ΜΗΧΑΝΙΚΩΝ ΤΕΧΝΟΛΟΓΙΑΣ ΑΕΡΟΣΚΑΦΩΝ Τ.Ε. (ΧΑΛΚΙΔΑ)",1,null,"","",null,null,null,"ΝΑΥΤΙΛΙΑΣ & ΕΠΙΧΕΙΡΗΜΑΤΙΚΩΝ ΥΠΗΡΕΣΙΩΝ (ΧΙΟΣ)",1,0.16474464579901152]
["ΠΑΙΔΑΓΩΓΙΚΟ ΕΙΔΙΚΗΣ ΑΓΩΓΗΣ (ΒΟΛΟΣ)",1,null,"","",null,null,null,"ΜΗΧΑΝΙΚΩΝ ΕΠΙΣΤΗΜΗΣ ΥΛΙΚΩΝ (ΙΩΑΝΝΙΝΑ)",1,0.16474464579901152]
["ΟΙΚΟΝΟΜΙΚΩΝ ΕΠΙΣΤΗΜΩΝ (ΘΕΣΣΑΛΟΝΙΚΗ)",3,null,"","",null,null,null,"ΤΕΧΝΟΛΟΓΙΑΣ ΤΡΟΦΙΜΩΝ (ΚΑΡΔΙΤΣΑ)",1,0.16474464579901152]
["ΜΗΧΑΝΙΚΩΝ ΠΛΗΡΟΦΟΡΙΚΗΣ Τ.Ε. (ΚΑΒΑΛΑ) ",3,null,"","",null,null,null,"ΔΙΑΤΡΟΦΗΣ & ΔΙΑΙΤΟΛΟΓΙΑΣ (ΣΗΤΕΙΑ)",1,0.16474464579901152]
["ΙΣΤΟΡΙΑΣ & ΑΡΧΑΙΟΛΟΓΙΑΣ (ΘΕΣΣΑΛΟΝΙΚΗ)",1,null,"","",null,null,null,"ΑΞΙΩΜΑΤΙΚΩΝ ΕΛΛΗΝΙΚΗΣ ΑΣΤΥΝΟΜΙΑΣ (ΜΟΝΟ ΓΙΑ ΠΟΛΙΤΕΣ)",1,0.16474464579901152]
["ΠΑΙΔΑΓΩΓΙΚΟ ΔΗΜΟΤΙΚΗΣ ΕΚΠΑΙΔΕΥΣΗΣ (ΘΕΣΣΑΛΟΝΙΚΗ)",1,null,"","",null,null,null,"ΕΠΙΣΤΗΜΗΣ ΦΥΣΙΚΗΣ ΑΓΩΓΗΣ ΚΑΙ ΑΘΛΗΤΙΣΜΟΥ (ΤΡΙΚΑΛΑ)",1,0.16474464579901152]
["ΙΣΤΟΡΙΑΣ & ΕΘΝΟΛΟΓΙΑΣ (ΚΟΜΟΤΗΝΗ)",1,null,"","",null,null,null,"ΨΗΦΙΑΚΩΝ ΜΕΣΩΝ & ΕΠΙΚΟΙΝΩΝΙΑΣ Τ.Ε. (ΚΑΣΤΟΡΙΑ)",1,0.16474464579901152]
["ΑΣΤΥΦΥΛΑΚΩΝ (ΜΟΝΟ ΓΙΑ ΠΟΛΙΤΕΣ)",1,null,"","",null,null,null,"ΑΣΤΥΦΥΛΑΚΩΝ (ΜΟΝΟ ΓΙΑ ΠΟΛΙΤΕΣ)",1,0.16474464579901152]
["ΕΠΙΣΤΗΜΗΣ ΦΥΣΙΚΗΣ ΑΓΩΓΗΣ ΚΑΙ ΑΘΛΗΤΙΣΜΟΥ (ΚΟΜΟΤΗΝΗ)",1,null,"","",null,null,null,"ΙΣΤΟΡΙΑΣ (ΚΕΡΚΥΡΑ)",1,0.16474464579901152]
["ΦΑΡΜΑΚΕΥΤΙΚΗΣ (ΘΕΣΣΑΛΟΝΙΚΗ)",1,null,"","",null,null,null,"ΣΧΕΔΙΑΣΜΟΥ & ΤΕΧΝΟΛΟΓΙΑΣ ΞΥΛΟΥ ΚΑΙ ΕΠΙΠΛΟΥ Τ.Ε. (ΚΑΡΔΙΤΣΑ)",1,0.16474464579901152]
["ΝΟΜΙΚΗΣ (ΘΕΣΣΑΛΟΝΙΚΗ)",1,null,"","",null,null,null,"ΒΑΛΚΑΝΙΚΩΝ, ΣΛΑΒΙΚΩΝ ΚΑΙ ΑΝΑΤΟΛΙΚΩΝ ΣΠΟΥΔΩΝ (ΘΕΣΣΑΛΟΝΙΚΗ)",1,0.16474464579901152]
["ΜΟΡΙΑΚΗΣ ΒΙΟΛΟΓΙΑΣ & ΓΕΝΕΤΙΚΗΣ (ΑΛΕΞΑΝΔΡΟΥΠΟΛΗ)",1,null,"","",null,null,null,"ΕΚΠΑΙΔΕΥΤΙΚΗΣ ΚΑΙ ΚΟΙΝΩΝΙΚΗΣ ΠΟΛΙΤΙΚΗΣ (ΘΕΣΣΑΛΟΝΙΚΗ)",1,0.16474464579901152]
["ΕΦΑΡΜΟΣΜΕΝΗΣ ΠΛΗΡΟΦΟΡΙΚΗΣ (ΘΕΣΣΑΛΟΝΙΚΗ)",2,null,"","",null,null,null,"ΑΚΤΙΝΟΛΟΓΙΑΣ ΚΑΙ ΑΚΤΙΝΟΘΕΡΑΠΕΙΑΣ (ΑΘΗΝΑ)",1,0.16474464579901152]
["ΙΣΤΟΡΙΑΣ (ΚΕΡΚΥΡΑ)",1,null,"","",null,null,null,"ΠΑΙΔΑΓΩΓΙΚΟ ΠΡΟΣΧΟΛΙΚΗΣ ΕΚΠΑΙΔΕΥΣΗΣ (ΒΟΛΟΣ)",1,0.16474464579901152]
["ΔΙΟΙΚΗΣΗΣ ΕΠΙΧΕΙΡΗΣΕΩΝ (ΚΟΖΑΝΗ)",1,null,"","",null,null,null,"ΟΙΚΟΝΟΜΙΚΩΝ ΕΠΙΣΤΗΜΩΝ (ΑΘΗΝΑ)",1,0.16474464579901152]
["ΓΕΡΜΑΝΙΚΗΣ ΓΛΩΣΣΑΣ ΚΑΙ ΦΙΛΟΛΟΓΙΑΣ (ΘΕΣΣΑΛΟΝΙΚΗ)",1,null,"","",null,null,null,"ΜΗΧΑΝΙΚΩΝ ΠΛΗΡΟΦΟΡΙΚΗΣ Τ.Ε. (ΘΕΣΣΑΛΟΝΙΚΗ)",1,0.16474464579901152]
["ΣΧΕΔΙΑΣΜΟΥ & ΤΕΧΝΟΛΟΓΙΑΣ ΞΥΛΟΥ ΚΑΙ ΕΠΙΠΛΟΥ Τ.Ε. (ΚΑΡΔΙΤΣΑ)",1,null,"","",null,null,null,"ΧΗΜΕΙΑΣ (ΗΡΑΚΛΕΙΟ)",1,0.16474464579901152]
["ΜΗΧΑΝΙΚΩΝ ΧΩΡΟΤΑΞΙΑΣ & ΑΝΑΠΤΥΞΗΣ (ΘΕΣΣΑΛΟΝΙΚΗ)",1,null,"","",null,null,null,"ΔΙΟΙΚΗΣΗΣ ΕΠΙΧΕΙΡΗΣΕΩΝ (ΠΑΤΡΑ)",1,0.16474464579901152]
["ΜΗΧΑΝΙΚΩΝ ΠΛΗΡΟΦΟΡΙΑΚΩΝ & ΕΠΙΚΟΙΝΩΝΙΑΚΩΝ ΣΥΣΤΗΜΑΤΩΝ (ΣΑΜΟΣ)",2,null,"","",null,null,null,"ΔΙΕΘΝΩΝ & ΕΥΡΩΠΑΪΚΩΝ ΣΠΟΥΔΩΝ (ΘΕΣΣΑΛΟΝΙΚΗ)",1,0.16474464579901152]
["ΔΑΣΟΠΟΝΙΑΣ & ΔΙΑΧΕΙΡΙΣΗΣ ΦΥΣΙΚΟΥ ΠΕΡΙΒΑΛΛΟΝΤΟΣ (ΚΑΡΠΕΝΗΣΙ) ",1,null,"","",null,null,null,"ΗΛΕΚΤΡΟΛΟΓΩΝ ΜΗΧΑΝΙΚΩΝ Τ.Ε. (ΗΡΑΚΛΕΙΟ)",1,0.16474464579901152]
["ΒΑΛΚΑΝΙΚΩΝ, ΣΛΑΒΙΚΩΝ ΚΑΙ ΑΝΑΤΟΛΙΚΩΝ ΣΠΟΥΔΩΝ (ΘΕΣΣΑΛΟΝΙΚΗ)",1,null,"","",null,null,null,"ΛΟΓΟΘΕΡΑΠΕΙΑΣ (ΠΑΤΡΑ)",1,0.16474464579901152]
["ΗΛΕΚΤΡΟΛΟΓΩΝ ΜΗΧΑΝΙΚΩΝ & ΜΗΧΑΝΙΚΩΝ ΥΠΟΛΟΓΙΣΤΩΝ (ΘΕΣΣΑΛΟΝΙΚΗ)",1,null,"","",null,null,null,"ΚΟΙΝΩΝΙΚΗΣ ΕΡΓΑΣΙΑΣ (ΑΘΗΝΑ)",1,0.16474464579901152]
["ΜΗΧΑΝΟΛΟΓΩΝ ΜΗΧΑΝΙΚΩΝ ΚΑΙ ΒΙΟΜΗΧΑΝΙΚΟΥ ΣΧΕΔΙΑΣΜΟΥ Τ.Ε. (ΚΟΖΑΝΗ) - ΒΙΟΜΗΧΑΝΙΚΟΥ ΣΧΕΔΙΑΣΜΟΥ Τ.Ε.",1,null,"","",null,null,null,"ΤΕΧΝΙΚΩΝ ΥΠΑΞΙΩΜΑΤΙΚΩΝ ΑΕΡΟΠΟΡΙΑΣ (Σ.Τ.Υ.Α.)",1,0.16474464579901152]
["ΜΑΘΗΜΑΤΙΚΩΝ (ΙΩΑΝΝΙΝΑ)",1,null,"","",null,null,null,"ΠΑΙΔΑΓΩΓΙΚΟ ΔΗΜΟΤΙΚΗΣ ΕΚΠΑΙΔΕΥΣΗΣ (ΡΟΔΟΣ)",1,0.16474464579901152]
["ΕΚΠΑΙΔΕΥΤΙΚΗΣ ΚΑΙ ΚΟΙΝΩΝΙΚΗΣ ΠΟΛΙΤΙΚΗΣ (ΘΕΣΣΑΛΟΝΙΚΗ)",1,null,"","",null,null,null,"ΦΥΣΙΚΗΣ (ΘΕΣΣΑΛΟΝΙΚΗ)",1,0.16474464579901152]
["ΑΚΤΙΝΟΛΟΓΙΑΣ ΚΑΙ ΑΚΤΙΝΟΘΕΡΑΠΕΙΑΣ (ΑΘΗΝΑ)",1,null,"","",null,null,null,"ΑΓΓΛΙΚΗΣ ΓΛΩΣΣΑΣ ΚΑΙ ΦΙΛΟΛΟΓΙΑΣ (ΑΘΗΝΑ)",1,0.16474464579901152]
["ΑΡΧΙΤΕΚΤΟΝΩΝ ΜΗΧΑΝΙΚΩΝ (ΞΑΝΘΗ) ",1,null,"","",null,null,null,"ΘΕΑΤΡΙΚΩΝ ΣΠΟΥΔΩΝ (ΠΑΤΡΑ)",1,0.16474464579901152]
["ΠΑΙΔΑΓΩΓΙΚΟ ΠΡΟΣΧΟΛΙΚΗΣ ΕΚΠΑΙΔΕΥΣΗΣ (ΒΟΛΟΣ)",1,null,"","",null,null,null,"ΜΑΘΗΜΑΤΙΚΩΝ KAI ΕΦΑΡΜΟΣΜΕΝΩΝ ΜΑΘΗΜΑΤΙΚΩΝ (ΗΡΑΚΛΕΙΟ) - ΜΑΘΗΜΑΤΙΚΩΝ ",1,0.16474464579901152]
["ΜΑΘΗΜΑΤΙΚΩΝ (ΘΕΣΣΑΛΟΝΙΚΗ)",1,null,"","",null,null,null,"ΜΗΧΑΝΟΛΟΓΩΝ ΜΗΧΑΝΙΚΩΝ Τ.Ε. (ΗΡΑΚΛΕΙΟ) ",1,0.16474464579901152]
["ΟΙΚΟΝΟΜΙΚΩΝ ΕΠΙΣΤΗΜΩΝ (ΑΘΗΝΑ)",1,null,"","",null,null,null,"ΜΑΘΗΜΑΤΙΚΩΝ KAI ΕΦΑΡΜΟΣΜΕΝΩΝ ΜΑΘΗΜΑΤΙΚΩΝ (ΗΡΑΚΛΕΙΟ) - ΕΦΑΡΜΟΣΜΕΝΩΝ ΜΑΘΗΜΑΤΙΚΩΝ",1,0.16474464579901152]
["ΑΙΣΘΗΤΙΚΗΣ & ΚΟΣΜΗΤΟΛΟΓΙΑΣ (ΘΕΣΣΑΛΟΝΙΚΗ)",1,null,"","",null,null,null,"ΕΠΙΣΤΗΜΗΣ ΦΥΤΙΚΗΣ ΠΑΡΑΓΩΓΗΣ (ΑΘΗΝΑ)",1,0.16474464579901152]
["ΣΧΕΔΙΑΣΜΟΥ & ΤΕΧΝΟΛΟΓΙΑΣ ΕΝΔΥΣΗΣ (ΚΙΛΚΙΣ)",1,null,"","",null,null,null,"ΜΗΧΑΝΙΚΩΝ ΗΛΕΚΤΡΟΝΙΚΩΝ ΥΠΟΛΟΓΙΣΤΙΚΩΝ ΣΥΣΤΗΜΑΤΩΝ Τ.Ε. (ΠΕΙΡΑΙΑΣ)",1,{"$f":"J196/607%","v":0.16474464579901152}]
["","",null,"","",null,null,null,"ΜΗΧΑΝΙΚΩΝ ΠΛΗΡΟΦΟΡΙΚΗΣ Τ.Ε. (ΚΑΣΤΟΡΙΑ)",1,0.16474464579901152]
["","",null,"","",null,null,null,"ΕΠΙΣΤΗΜΗΣ ΤΡΟΦΙΜΩΝ ΚΑΙ ΔΙΑΤΡΟΦΗΣ ΤΟΥ ΑΝΘΡΩΠΟΥ (ΑΘΗΝΑ)",1,0.16474464579901152]
["","",null,"","",null,null,null,"ΜΗΧΑΝΙΚΩΝ ΜΕΤΑΛΛΕΙΩΝ ΜΕΤΑΛΛΟΥΡΓΩΝ (ΑΘΗΝΑ)",1,0.16474464579901152]
["","",null,"","",null,null,null,"ΔΙΑΤΡΟΦΗΣ & ΔΙΑΙΤΟΛΟΓΙΑΣ (ΚΑΡΔΙΤΣΑ)",1,0.16474464579901152]
["","",null,"","",null,null,null,"ΕΠΙΣΤΗΜΩΝ ΤΗΣ ΕΚΠΑΙΔΕΥΣΗΣ & ΤΗΣ ΑΓΩΓΗΣ ΣΤΗΝ ΠΡΟΣΧΟΛΙΚΗ ΗΛΙΚΙΑ (ΠΑΤΡΑ)",1,0.16474464579901152]
["","",null,"","",null,null,null,"ΠΟΛΙΤΙΚΩΝ ΜΗΧΑΝΙΚΩΝ (ΠΑΤΡΑ)",1,0.16474464579901152]
["","",null,"","",null,null,null,"ΜΗΧΑΝΙΚΩΝ ΕΝΕΡΓΕΙΑΚΗΣ ΤΕΧΝΟΛΟΓΙΑΣ Τ.Ε. (ΑΘΗΝΑ)",1,0.16474464579901152]
[null,null,null,null,null,null,null,null,"ΠΛΗΡΟΦΟΡΙΚΗΣ ΚΑΙ ΤΗΛΕΠΙΚΟΙΝΩΝΙΩΝ (ΑΘΗΝΑ)",1,0.16474464579901152]
[null,null,null,null,null,null,null,null,"ΕΦΑΡΜΟΣΜΕΝΩΝ ΜΑΘΗΜΑΤΙΚΩΝ & ΦΥΣΙΚΩΝ ΕΠΙΣΤΗΜΩΝ (ΑΘΗΝΑ)",1,0.16474464579901152]
[null,null,null,null,null,null,null,null,"ΝΟΣΗΛΕΥΤΙΚΗΣ (ΣΠΑΡΤΗ) ",1,0.16474464579901152]
[null,null,null,null,null,null,null,null,"ΗΛΕΚΤΡΟΛΟΓΩΝ ΜΗΧΑΝΙΚΩΝ ΚΑΙ ΜΗΧΑΝΙΚΩΝ ΥΠΟΛΟΓΙΣΤΩΝ (ΧΑΝΙΑ)",1,0.16474464579901152]
["3 ΓΕΛ",null,null,null,null,null,null,null,"ΑΞΙΟΠΟΙΗΣΗΣ ΦΥΣΙΚΩΝ ΠΟΡΩΝ ΚΑΙ ΓΕΩΡΓΙΚΗΣ ΜΗΧΑΝΙΚΗΣ (ΑΘΗΝΑ)",1,0.16474464579901152]
["C:\\temp\\[stat-B44.xlsm]3 ΓΕΛ.xls",null,null,null,null,null,null,null,"ΕΠΙΣΤΗΜΗΣ ΖΩΪΚΗΣ ΠΑΡΑΓΩΓΗΣ & ΥΔΑΤΟΚΑΛΛΙΕΡΓΕΙΩΝ (ΑΘΗΝΑ)",1,0.16474464579901152]
["ΜΗΧΑΝΙΚΩΝ ΠΛΗΡΟΦΟΡΙΚΗΣ Τ.Ε. (ΘΕΣΣΑΛΟΝΙΚΗ)",1,null,"ΤΕΙ ΘΕΣ/ΚΗΣ",7,null,null,null,"ΑΓΡΟΝΟΜΩΝ & ΤΟΠΟΓΡΑΦΩΝ ΜΗΧΑΝΙΚΩΝ (ΑΘΗΝΑ)",1,0.16474464579901152]
["ΗΛΕΚΤΡΟΛΟΓΩΝ ΜΗΧΑΝΙΚΩΝ & ΜΗΧΑΝΙΚΩΝ ΥΠΟΛΟΓΙΣΤΩΝ (ΞΑΝΘΗ)",6,null,"ΔΗΜ. ΠΑΝ. ΘΡΑΚΗΣ",23,null,null,null,"ΣΧΟΛΗ ΠΛΟΙΑΡΧΩΝ",1,0.16474464579901152]
["ΕΠΙΣΤΗΜΩΝ ΠΡΟΣΧΟΛΙΚΗΣ ΑΓΩΓΗΣ & ΕΚΠΑΙΔΕΥΣΗΣ (ΘΕΣΣΑΛΟΝΙΚΗ)",2,null,"ΑΠΘ",29,null,null,null,"ΝΑΥΠΗΓΩΝ ΜΗΧΑΝΟΛΟΓΩΝ ΜΗΧΑΝΙΚΩΝ (ΑΘΗΝΑ)",1,0.16474464579901152]
["ΧΗΜΕΙΑΣ (ΗΡΑΚΛΕΙΟ)",1,null,"ΠΑΝ. ΚΡΗΤΗΣ",10,null,null,null,"ΜΗΧΑΝΟΛΟΓΩΝ ΜΗΧΑΝΙΚΩΝ (ΑΘΗΝΑ)",1,0.16474464579901152]
["ΑΡΧΙΤΕΚΤΟΝΩΝ ΜΗΧΑΝΙΚΩΝ (ΞΑΝΘΗ) ",1,null,"ΤΕΙ ΚΕΝΤΡ ΜΑΚ/ΝΙΑΣ",7,null,null,null,"ΜΑΙΕΥΤΙΚΗΣ (ΑΘΗΝΑ)",1,0.16474464579901152]
["ΠΟΛΙΤΙΚΩΝ ΜΗΧΑΝΙΚΩΝ Τ.Ε. ΚΑΙ ΜΗΧΑΝΙΚΩΝ ΤΟΠΟΓΡΑΦΙΑΣ & ΓΕΩΠΛΗΡΟΦΟΡΙΚΗΣ Τ.Ε. (ΣΕΡΡΕΣ) - ΜΗΧΑΝΙΚΩΝ ΤΟΠΟΓΡΑΦΙΑΣ & ΓΕΩΠΛΗΡΟΦΟΡΙΚΗΣ Τ.Ε.",1,null,"ΠΑΝ. ΙΩΑΝΝΙΝΩΝ",10,null,null,null,"ΗΛΕΚΤΡΟΝΙΚΩΝ ΜΗΧΑΝΙΚΩΝ Τ.Ε. (ΑΘΗΝΑ)",1,0.16474464579901152]
["ΙΣΤΟΡΙΑΣ & ΑΡΧΑΙΟΛΟΓΙΑΣ (ΙΩΑΝΝΙΝΑ)",2,null,"ΠΑΝ. ΑΙΓΑΙΟΥ",11,null,null,null,"ΜΗΧΑΝΟΛΟΓΩΝ ΜΗΧΑΝΙΚΩΝ Τ.Ε. (ΠΕΙΡΑΙΑΣ)",1,0.16474464579901152]
["ΜΑΘΗΜΑΤΙΚΩΝ (ΣΑΜΟΣ) - ΜΑΘΗΜΑΤΙΚΩΝ",2,null,"ΠΑΝ. ΠΑΤΡΩΝ",6,null,null,null,"ΕΡΓΟΘΕΡΑΠΕΙΑΣ (ΑΘΗΝΑ)",1,0.16474464579901152]
["ΜΑΘΗΜΑΤΙΚΩΝ (ΘΕΣΣΑΛΟΝΙΚΗ)",1,null,"ΠΑΝ. ΜΑΚ/ΝΙΑΣ",4,null,null,null,"ΕΠΙΣΤΗΜΗΣ ΦΥΣΙΚΗΣ ΑΓΩΓΗΣ ΚΑΙ ΑΘΛΗΤΙΣΜΟΥ (ΑΘΗΝΑ)",1,0.16474464579901152]
["ΚΟΙΝΩΝΙΚΗΣ ΔΙΟΙΚΗΣΗΣ ΚΑΙ ΠΟΛΙΤΙΚΗΣ ΕΠΙΣΤΗΜΗΣ (ΚΟΜΟΤΗΝΗ) - ΠΟΛΙΤΙΚΗΣ ΕΠΙΣΤΗΜΗΣ",2,null,"ΤΕΙ ΔΥΤ. ΜΑΚ/ΝΙΑΣ",3,null,null,null,"ΧΗΜΙΚΩΝ ΜΗΧΑΝΙΚΩΝ (ΠΑΤΡΑ)",1,0.16474464579901152]
["ΑΙΣΘΗΤΙΚΗΣ & ΚΟΣΜΗΤΟΛΟΓΙΑΣ (ΘΕΣΣΑΛΟΝΙΚΗ)",3,null,"ΠΑΝ. ΠΕΛ/ΝΗΣΟΥ",2,null,null,null,"ΝΟΜΙΚΗΣ (ΚΟΜΟΤΗΝΗ)",1,0.16474464579901152]
["ΔΙΟΙΚΗΣΗΣ ΕΠΙΧΕΙΡΗΣΕΩΝ (ΠΑΤΡΑ)",1,null,"ΤΕΙ ΚΡΗΤΗΣ",2,null,null,null,"ΜΟΥΣΙΚΗΣ ΕΠΙΣΤΗΜΗΣ & ΤΕΧΝΗΣ (ΘΕΣΣΑΛΟΝΙΚΗ)",1,0.16474464579901152]
["ΜΟΡΙΑΚΗΣ ΒΙΟΛΟΓΙΑΣ & ΓΕΝΕΤΙΚΗΣ (ΑΛΕΞΑΝΔΡΟΥΠΟΛΗ)",1,null,"ΤΕΙ ΔΥΤ. ΕΛΛΑΔΑΣ",2,null,null,null,"ΗΛΕΚΤΡΟΛΟΓΩΝ ΜΗΧΑΝΙΚΩΝ & ΤΕΧΝΟΛΟΓΙΑΣ ΥΠΟΛΟΓΙΣΤΩΝ (ΠΑΤΡΑ)",1,0.16474464579901152]
["ΔΙΕΘΝΩΝ & ΕΥΡΩΠΑΪΚΩΝ ΣΠΟΥΔΩΝ (ΘΕΣΣΑΛΟΝΙΚΗ)",1,null,"ΤΕΙ ΑΘΗΝΑΣ",7,null,null,null,"ΕΣΩΤΕΡΙΚΗΣ ΑΡΧΙΤΕΚΤΟΝΙΚΗΣ, ΔΙΑΚΟΣΜΗΣΗΣ ΚΑΙ ΣΧΕΔΙΑΣΜΟΥ ΑΝΤΙΚΕΙΜΕΝΩΝ (ΑΘΗΝΑ)",1,0.16474464579901152]
["ΜΗΧΑΝΟΛΟΓΩΝ ΜΗΧΑΝΙΚΩΝ ΚΑΙ ΒΙΟΜΗΧΑΝΙΚΟΥ ΣΧΕΔΙΑΣΜΟΥ Τ.Ε. (ΚΟΖΑΝΗ) - ΒΙΟΜΗΧΑΝΙΚΟΥ ΣΧΕΔΙΑΣΜΟΥ Τ.Ε.",1,null,"ΣΤΥΑ",1,null,null,null,"ΔΙΟΙΚΗΣΗΣ ΕΠΙΧΕΙΡΗΣΕΩΝ (ΛΑΡΙΣΑ) - ΔΙΟΙΚΗΣΗ ΕΠΙΧΕΙΡΗΣΕΩΝ",1,0.16474464579901152]
["ΜΑΘΗΜΑΤΙΚΩΝ (ΙΩΑΝΝΙΝΑ)",3,null,"ΤΕΙ  ΣΤΕΡ. ΕΛΛΑΔΑΣ",1,null,null,null,"ΠΑΙΔΑΓΩΓΙΚΟ ΔΗΜΟΤΙΚΗΣ ΕΚΠΑΙΔΕΥΣΗΣ (ΙΩΑΝΝΙΝΑ)",1,0.16474464579901152]
["ΛΟΓΙΣΤΙΚΗΣ ΚΑΙ ΧΡΗΜΑΤΟΟΙΚΟΝΟΜΙΚΗΣ (ΣΕΡΡΕΣ)",2,null,"ΤΕΙ ΑΝΑΤ. ΜΑΚ/ΝΙΑΣ & ΘΡΑΚΗΣ",3,null,null,null,"ΦΥΣΙΚΟΘΕΡΑΠΕΙΑΣ (ΑΘΗΝΑ)",1,0.16474464579901152]
["ΘΕΑΤΡΙΚΩΝ ΣΠΟΥΔΩΝ (ΝΑΥΠΛΙΟ)",1,null,"ΕΜΠ",6,null,null,null,"ΒΙΟΧΗΜΕΙΑΣ & ΒΙΟΤΕΧΝΟΛΟΓΙΑΣ (ΛΑΡΙΣΑ)",1,0.16474464579901152]
["ΗΛΕΚΤΡΟΛΟΓΩΝ ΜΗΧΑΝΙΚΩΝ Τ.Ε. (ΗΡΑΚΛΕΙΟ)",1,null,"ΠΑΝ. ΘΕΣΣΑΛΙΑΣ",9,null,null,null,"ΗΛΕΚΤΡΟΝΙΚΩΝ ΜΗΧΑΝΙΚΩΝ Τ.Ε. (ΠΕΙΡΑΙΑΣ)",1,0.16474464579901152]
["ΠΑΙΔΑΓΩΓΙΚΟ ΔΗΜΟΤΙΚΗΣ ΕΚΠΑΙΔΕΥΣΗΣ (ΑΛΕΞΑΝΔΡΟΥΠΟΛΗ)",1,null,"ΕΚΠΑ",7,null,null,null,"ΦΥΣΙΚΗΣ (ΗΡΑΚΛΕΙΟ)",1,0.16474464579901152]
["ΕΠΙΣΤΗΜΩΝ ΤΗΣ ΕΚΠΑΙΔΕΥΣΗΣ ΣΤΗΝ ΠΡΟΣΧΟΛΙΚΗ ΗΛΙΚΙΑ (ΑΛΕΞΑΝΔΡΟΥΠΟΛΗ)",2,null,"ΓΕΩΠ. ΠΑΝ. ΑΘ.",4,null,null,null,"ΦΑΡΜΑΚΕΥΤΙΚΗΣ (ΑΘΗΝΑ)",1,0.16474464579901152]
["ΘΕΑΤΡΟΥ (ΘΕΣΣΑΛΟΝΙΚΗ)",1,null,"ΤΕΙ ΠΕΙΡΑΙΑ",3,null,null,null,"ΚΤΗΝΙΑΤΡΙΚΟ (ΣΣΑΣ) ΘΕΣ/ΝΙΚΗΣ",1,0.16474464579901152]
["ΕΠΙΣΤΗΜΗΣ & ΤΕΧΝΟΛΟΓΙΑΣ ΥΛΙΚΩΝ (ΗΡΑΚΛΕΙΟ)",1,null,"ΤΕΙ ΘΕΣΣΑΛΙΑΣ",2,null,null,null,"ΕΚΠΑΙΔΕΥΣΗΣ & ΑΓΩΓΗΣ ΣΤΗΝ ΠΡΟΣΧΟΛΙΚΗ ΗΛΙΚΙΑ (ΑΘΗΝΑ)",1,0.16474464579901152]
["ΑΓΡΟΤΙΚΗΣ ΑΝΑΠΤΥΞΗΣ (ΟΡΕΣΤΙΑΔΑ) ",1,null,"ΠΑΝ. ΔΥΤ. ΜΑΚ/ΝΙΑΣ",5,null,null,null,"ΦΙΛΟΛΟΓΙΑΣ (ΡΕΘΥΜΝΟ)",1,0.16474464579901152]
["ΛΟΓΟΘΕΡΑΠΕΙΑΣ (ΠΑΤΡΑ)",1,null,"ΠΟΛ/ΧΝΕΙΟ ΚΡΗΤΗΣ",1,null,null,null,"ΔΙΟΙΚΗΣΗΣ ΕΠΙΧΕΙΡΗΣΕΩΝ (ΣΕΡΡΕΣ)",1,0.16474464579901152]
["ΚΟΙΝΩΝΙΚΗΣ ΕΡΓΑΣΙΑΣ (ΑΘΗΝΑ)",1,null,"ΑΕΝ",2,null,null,null,"ΙΑΤΡΙΚΗΣ (ΛΑΡΙΣΑ)",1,0.16474464579901152]
["ΦΙΛΟΛΟΓΙΑΣ (ΘΕΣΣΑΛΟΝΙΚΗ)",4,null,"ΠΥΡΟΣΒ ΑΚΑΔ",1,null,null,null,"ΤΕΧΝΟΛΟΓΙΑΣ ΤΡΟΦΙΜΩΝ (ΑΘΗΝΑ)",1,0.16474464579901152]
["ΤΕΧΝΙΚΩΝ ΥΠΑΞΙΩΜΑΤΙΚΩΝ ΑΕΡΟΠΟΡΙΑΣ (Σ.Τ.Υ.Α.)",1,null,"ΤΕΙ ΗΠΕΙΡΟΥ",1,null,null,null,"ΠΟΛΙΤΙΚΩΝ ΜΗΧΑΝΙΚΩΝ Τ.Ε. ΚΑΙ ΜΗΧΑΝΙΚΩΝ ΤΟΠΟΓΡΑΦΙΑΣ & ΓΕΩΠΛΗΡΟΦΟΡΙΚΗΣ Τ.Ε. (ΑΘΗΝΑ) - ΠΟΛΙΤΙΚΩΝ ΜΗΧΑΝΙΚΩΝ Τ.Ε. ",1,0.16474464579901152]
["ΦΥΣΙΚΟΘΕΡΑΠΕΙΑΣ (ΛΑΜΙΑ)",1,null,"ΣΣΑΣ",1,null,null,null,"ΤΕΧΝΟΛΟΓΩΝ ΓΕΩΠΟΝΩΝ (ΚΑΛΑΜΑΤΑ)",1,0.16474464579901152]
["ΕΠΙΣΤΗΜΗΣ ΦΥΣΙΚΗΣ ΑΓΩΓΗΣ ΚΑΙ ΑΘΛΗΤΙΣΜΟΥ (ΘΕΣΣΑΛΟΝΙΚΗ)",1,null,"ΙΟΝΙΟ ΠΑΝ.",1,null,null,null,"ΠΑΙΔΑΓΩΓΙΚΟ ΔΗΜΟΤΙΚΗΣ ΕΚΠΑΙΔΕΥΣΗΣ (ΦΛΩΡΙΝΑ)",1,0.16474464579901152]
["ΛΟΓΙΣΤΙΚΗΣ ΚΑΙ ΧΡΗΜΑΤΟΟΙΚΟΝΟΜΙΚΗΣ (ΚΑΒΑΛΑ)",1,null,"","",null,null,null,"ΘΕΑΤΡΙΚΩΝ ΣΠΟΥΔΩΝ (ΑΘΗΝΑ)",1,0.16474464579901152]
["ΜΗΧΑΝΙΚΩΝ ΠΕΡΙΒΑΛΛΟΝΤΟΣ (ΞΑΝΘΗ) ",2,null,"","",null,null,null,"ΠΛΗΡΟΦΟΡΙΚΗΣ ΚΑΙ ΤΗΛΕΜΑΤΙΚΗΣ (ΑΘΗΝΑ)",1,0.16474464579901152]
["ΜΗΧΑΝΙΚΩΝ ΠΛΗΡΟΦΟΡΙΚΗΣ Τ.Ε. (ΚΑΒΑΛΑ) ",1,null,"","",null,null,null,"ΜΑΙΕΥΤΙΚΗΣ (ΘΕΣΣΑΛΟΝΙΚΗ)",1,0.16474464579901152]
["ΠΟΛΙΤΙΚΩΝ ΜΗΧΑΝΙΚΩΝ (ΑΘΗΝΑ) ",1,null,"","",null,null,null,"ΗΛΕΚΤΡΟΛΟΓΩΝ ΜΗΧΑΝΙΚΩΝ Τ.Ε. (ΠΕΙΡΑΙΑΣ)",1,0.16474464579901152]
["ΒΙΟΛΟΓΙΑΣ (ΗΡΑΚΛΕΙΟ)",2,null,"","",null,null,null,"ΝΟΣΗΛΕΥΤΙΚΗΣ (ΠΑΤΡΑ)",1,0.16474464579901152]
["ΠΛΗΡΟΦΟΡΙΚΗΣ ΜΕ ΕΦΑΡΜΟΓΕΣ ΣΤΗ ΒΙΟΪΑΤΡΙΚΗ (ΛΑΜΙΑ)",1,null,"","",null,null,null,"ΦΙΛΟΣΟΦΙΑΣ & ΠΑΙΔΑΓΩΓΙΚΗΣ (ΘΕΣΣΑΛΟΝΙΚΗ)",1,0.16474464579901152]
["ΦΑΡΜΑΚΕΥΤΙΚΗΣ (ΘΕΣΣΑΛΟΝΙΚΗ)",1,null,"","",null,null,null,"ΜΑΡΚΕΤΙΝΓΚ ΚΑΙ ΕΠΙΚΟΙΝΩΝΙΑΣ (ΑΘΗΝΑ)",1,0.16474464579901152]
["ΠΑΙΔΑΓΩΓΙΚΟ ΔΗΜΟΤΙΚΗΣ ΕΚΠΑΙΔΕΥΣΗΣ (ΡΟΔΟΣ)",1,null,"","",null,null,null,"ΜΗΧΑΝΙΚΩΝ ΠΛΗΡΟΦΟΡΙΚΗΣ Τ.Ε. (ΣΠΑΡΤΗ) ",1,0.16474464579901152]
["ΜΗΧΑΝΟΛΟΓΩΝ ΟΧΗΜΑΤΩΝ Τ.Ε. (ΘΕΣΣΑΛΟΝΙΚΗ)",1,null,"","",null,null,null,"ΟΙΚΟΝΟΜΙΚΩΝ ΕΠΙΣΤΗΜΩΝ (ΙΩΑΝΝΙΝΑ)",1,0.16474464579901152]
["ΧΗΜΕΙΑΣ (ΘΕΣΣΑΛΟΝΙΚΗ)",2,null,"","",null,null,null,"ΛΟΓΙΣΤΙΚΗΣ ΚΑΙ ΧΡΗΜΑΤΟΟΙΚΟΝΟΜΙΚΗΣ (ΛΑΡΙΣΑ)",1,0.16474464579901152]
["ΠΑΙΔΑΓΩΓΙΚΟ ΔΗΜΟΤΙΚΗΣ ΕΚΠΑΙΔΕΥΣΗΣ (ΘΕΣΣΑΛΟΝΙΚΗ)",2,null,"","",null,null,null,"ΠΡΟΣΧΟΛΙΚΗΣ ΑΓΩΓΗΣ (ΑΘΗΝΑ)",1,0.16474464579901152]
["ΦΥΣΙΚΗΣ (ΘΕΣΣΑΛΟΝΙΚΗ)",1,null,"","",null,null,null,"ΦΙΛΟΣΟΦΙΑΣ - ΠΑΙΔΑΓΩΓΙΚΗΣ & ΨΥΧΟΛΟΓΙΑΣ (ΙΩΑΝΝΙΝΑ)",1,0.16474464579901152]
["ΑΓΓΛΙΚΗΣ ΓΛΩΣΣΑΣ ΚΑΙ ΦΙΛΟΛΟΓΙΑΣ (ΑΘΗΝΑ)",1,null,"","",null,null,null,"ΦΙΛΟΣΟΦΙΚΩΝ & ΚΟΙΝΩΝΙΚΩΝ ΣΠΟΥΔΩΝ (ΡΕΘΥΜΝΟ)",1,0.16474464579901152]
["ΘΕΑΤΡΙΚΩΝ ΣΠΟΥΔΩΝ (ΠΑΤΡΑ)",1,null,"","",null,null,null,"ΠΛΗΡΟΦΟΡΙΚΗΣ (ΠΕΙΡΑΙΑΣ)",1,0.16474464579901152]
["ΜΑΘΗΜΑΤΙΚΩΝ KAI ΕΦΑΡΜΟΣΜΕΝΩΝ ΜΑΘΗΜΑΤΙΚΩΝ (ΗΡΑΚΛΕΙΟ) - ΜΑΘΗΜΑΤΙΚΩΝ ",1,null,"","",null,null,null,"ΕΠΙΣΤΗΜΗΣ ΤΩΝ ΥΛΙΚΩΝ (ΠΑΤΡΑ)",1,0.16474464579901152]
["ΜΗΧΑΝΟΛΟΓΩΝ ΜΗΧΑΝΙΚΩΝ Τ.Ε. (ΗΡΑΚΛΕΙΟ) ",1,null,"","",null,null,null,"ΙΑΤΡΙΚΩΝ ΕΡΓΑΣΤΗΡΙΩΝ (ΛΑΡΙΣΑ)",1,0.16474464579901152]
["ΙΑΤΡΙΚΩΝ ΕΡΓΑΣΤΗΡΙΩΝ (ΘΕΣΣΑΛΟΝΙΚΗ)",2,null,"","",null,null,null,"ΒΙΒΛΙΟΘΗΚΟΝΟΜΙΑΣ & ΣΥΣΤΗΜΑΤΩΝ ΠΛΗΡΟΦΟΡΗΣΗΣ (ΑΘΗΝΑ)",1,0.16474464579901152]
["ΜΗΧΑΝΙΚΩΝ ΟΙΚΟΝΟΜΙΑΣ ΚΑΙ ΔΙΟΙΚΗΣΗΣ (ΧΙΟΣ)",2,null,"","",null,null,null,"ΧΗΜΕΙΑΣ (ΠΑΤΡΑ)",1,0.16474464579901152]
["ΠΟΛΙΤΙΚΗΣ ΕΠΙΣΤΗΜΗΣ (ΡΕΘΥΜΝΟ)",1,null,"","",null,null,null,"ΤΕΧΝΟΛΟΓΙΑΣ ΤΡΟΦΙΜΩΝ (ΑΡΓΟΣΤΟΛΙ)",1,0.16474464579901152]
["ΔΙΟΙΚΗΣΗΣ ΣΥΣΤΗΜΑΤΩΝ ΕΦΟΔΙΑΣΜΟΥ (ΚΑΤΕΡΙΝΗ)",1,null,"","",null,null,null,"ΠΡΟΓΡΑΜΜΑ ΔΙΑΧΕΙΡΙΣΗΣ ΕΚΚΛΗΣΙΑΣΤΙΚΩΝ ΚΕΙΜΗΛΙΩΝ ΘΕΣ/ΝΙΚΗΣ",1,0.16474464579901152]
["ΜΑΘΗΜΑΤΙΚΩΝ KAI ΕΦΑΡΜΟΣΜΕΝΩΝ ΜΑΘΗΜΑΤΙΚΩΝ (ΗΡΑΚΛΕΙΟ) - ΕΦΑΡΜΟΣΜΕΝΩΝ ΜΑΘΗΜΑΤΙΚΩΝ",1,null,"","",null,null,null,"ΠΡΟΓΡΑΜΜΑ ΙΕΡΑΤΙΚΩΝ ΣΠΟΥΔΩΝ ΑΘΗΝΑΣ",1,{"$f":"J260/607%","v":0.16474464579901152}]
["ΕΠΙΣΤΗΜΗΣ ΦΥΤΙΚΗΣ ΠΑΡΑΓΩΓΗΣ (ΑΘΗΝΑ)",1,null,"","",null,null,null,"ΤΕΧΝΟΛΟΓΩΝ ΓΕΩΠΟΝΩΝ (ΑΜΑΛΙΑΔΑ)",1,0.16474464579901152]
["ΙΑΤΡΙΚΗΣ (ΗΡΑΚΛΕΙΟ)",1,null,"","",null,null,null,"ΜΗΧΑΝΙΚΩΝ ΦΥΣΙΚΩΝ ΠΟΡΩΝ & ΠΕΡΙΒΑΛΛΟΝΤΟΣ Τ.Ε. (ΧΑΝΙΑ)",1,0.16474464579901152]
["ΜΗΧΑΝΙΚΩΝ ΗΛΕΚΤΡΟΝΙΚΩΝ ΥΠΟΛΟΓΙΣΤΙΚΩΝ ΣΥΣΤΗΜΑΤΩΝ Τ.Ε. (ΠΕΙΡΑΙΑΣ)",1,null,"","",null,null,null,"ΠΟΙΜΑΝΤΙΚΗΣ & ΚΟΙΝΩΝΙΚΗΣ ΘΕΟΛΟΓΙΑΣ (ΘΕΣΣΑΛΟΝΙΚΗ)",1,0.16474464579901152]
["ΜΗΧΑΝΙΚΩΝ ΠΛΗΡΟΦΟΡΙΚΗΣ Τ.Ε. (ΚΑΣΤΟΡΙΑ)",1,null,"","",null,null,null,"ΜΗΧΑΝΙΚΩΝ ΠΕΡΙΒΑΛΛΟΝΤΟΣ (ΧΑΝΙΑ)",1,0.16474464579901152]
["ΕΠΙΣΤΗΜΗΣ ΤΡΟΦΙΜΩΝ ΚΑΙ ΔΙΑΤΡΟΦΗΣ ΤΟΥ ΑΝΘΡΩΠΟΥ (ΑΘΗΝΑ)",1,null,"","",null,null,null,"ΓΕΩΛΟΓΙΑΣ (ΘΕΣΣΑΛΟΝΙΚΗ)",1,0.16474464579901152]
["ΜΗΧΑΝΙΚΩΝ ΜΕΤΑΛΛΕΙΩΝ ΜΕΤΑΛΛΟΥΡΓΩΝ (ΑΘΗΝΑ)",1,null,"","",null,null,null,"ΦΙΛΟΛΟΓΙΑΣ (ΚΑΛΑΜΑΤΑ)",1,0.16474464579901152]
["ΔΙΑΤΡΟΦΗΣ & ΔΙΑΙΤΟΛΟΓΙΑΣ (ΚΑΡΔΙΤΣΑ)",1,null,"","",null,null,null,"ΔΗΜΟΣΙΑΣ ΥΓΕΙΑΣ ΚΑΙ ΚΟΙΝΟΤΙΚΗΣ ΥΓΕΙΑΣ (ΑΘΗΝΑ) - ΚΟΙΝΟΤΙΚΗΣ ΥΓΕΙΑΣ",1,0.16474464579901152]
["ΜΗΧΑΝΙΚΩΝ ΠΛΗΡΟΦΟΡΙΚΗΣ & ΤΗΛΕΠΙΚΟΙΝΩΝΙΩΝ (ΚΟΖΑΝΗ)",2,null,"","",null,null,null,"ΤΕΧΝΟΛΟΓΩΝ ΠΕΡΙΒΑΛΛΟΝΤΟΣ Τ.Ε. (ΖΑΚΥΝΘΟΣ) - ΤΕΧΝΟΛΟΓΙΩΝ ΦΥΣΙΚΟΥ ΠΕΡΙΒΑΛΛΟΝΤΟΣ Τ.Ε.",1,0.16474464579901152]
["ΠΟΛΙΤΙΚΩΝ ΜΗΧΑΝΙΚΩΝ Τ.Ε. ΚΑΙ ΜΗΧΑΝΙΚΩΝ ΤΟΠΟΓΡΑΦΙΑΣ & ΓΕΩΠΛΗΡΟΦΟΡΙΚΗΣ Τ.Ε. (ΣΕΡΡΕΣ) - ΠΟΛΙΤΙΚΩΝ ΜΗΧΑΝΙΚΩΝ Τ.Ε.",1,null,"","",null,null,null,"ΔΙΟΙΚΗΣΗΣ ΕΠΙΧΕΙΡΗΣΕΩΝ (ΗΡΑΚΛΕΙΟ) - ΔΙΟΙΚΗΣΗ ΤΟΥΡΙΣΤΙΚΩΝ ΕΠΙΧΕΙΡΗΣΕΩΝ ΚΑΙ ΕΠΙΧΕΙΡΗΣΕΩΝ ΦΙΛΟΞΕΝΙΑΣ",1,0.16474464579901152]
["ΕΦΑΡΜΟΣΜΕΝΗΣ ΠΛΗΡΟΦΟΡΙΚΗΣ (ΘΕΣΣΑΛΟΝΙΚΗ)",1,null,"","",null,null,null,"ΤΕΧΝΩΝ ΗΧΟΥ & ΕΙΚΟΝΑΣ (ΚΕΡΚΥΡΑ)",1,0.16474464579901152]
["ΕΠΙΣΤΗΜΩΝ ΤΗΣ ΕΚΠΑΙΔΕΥΣΗΣ & ΤΗΣ ΑΓΩΓΗΣ ΣΤΗΝ ΠΡΟΣΧΟΛΙΚΗ ΗΛΙΚΙΑ (ΠΑΤΡΑ)",1,null,"","",null,null,null,"ΠΑΙΔΑΓΩΓΙΚΟ ΔΗΜΟΤΙΚΗΣ ΕΚΠΑΙΔΕΥΣΗΣ (ΡΕΘΥΜΝΟ)",1,0.16474464579901152]
["ΜΕΣΟΓΕΙΑΚΩΝ ΣΠΟΥΔΩΝ (ΡΟΔΟΣ)",1,null,"","",null,null,null,"ΕΚΠΑΙΔΕΥΤΙΚΩΝ ΗΛΕΚΤΡΟΛΟΓΩΝ ΜΗΧΑΝΙΚΩΝ & ΕΚΠΑΙΔΕΥΤΙΚΩΝ  ΗΛΕΚΤΡΟΝΙΚΩΝ ΜΗΧΑΝΙΚΩΝ - ΕΚΠΑΙΔΕΥΤΙΚΩΝ ΗΛΕΚΤΡΟΛΟΓΩΝ ΜΗΧΑΝΙΚΩΝ",1,0.16474464579901152]
["ΚΤΗΝΙΑΤΡΙΚΗΣ (ΚΑΡΔΙΤΣΑ)",2,null,"","",null,null,null,"ΟΙΚΟΝΟΜΙΚΩΝ ΕΠΙΣΤΗΜΩΝ (ΠΑΤΡΑ)",1,0.16474464579901152]
["ΙΑΤΡΙΚΗΣ (ΘΕΣΣΑΛΟΝΙΚΗ)",3,null,"","",null,null,null,"ΓΕΩΛΟΓΙΑΣ & ΓΕΩΠΕΡΙΒΑΛΛΟΝΤΟΣ (ΑΘΗΝΑ)",1,0.16474464579901152]
["ΝΟΣΗΛΕΥΤΙΚΗΣ (ΔΙΔΥΜΟΤΕΙΧΟ)",1,null,"","",null,null,null,"ΟΙΚΟΝΟΜΙΚΗΣ & ΠΕΡΙΦΕΡΕΙΑΚΗΣ ΑΝΑΠΤΥΞΗΣ (ΑΘΗΝΑ)",1,0.16474464579901152]
["ΛΟΓΙΣΤΙΚΗΣ & ΧΡΗΜΑΤΟΟΙΚΟΝΟΜΙΚΗΣ (ΘΕΣΣΑΛΟΝΙΚΗ)",1,null,"","",null,null,null,"ΚΟΙΝΩΝΙΚΗΣ ΑΝΘΡΩΠΟΛΟΓΙΑΣ & ΙΣΤΟΡΙΑΣ (ΜΥΤΙΛΗΝΗ)",1,0.16474464579901152]
["ΕΠΙΣΤΗΜΗΣ ΦΥΣΙΚΗΣ ΑΓΩΓΗΣ ΚΑΙ ΑΘΛΗΤΙΣΜΟΥ (ΣΕΡΡΕΣ)",1,null,"","",null,null,null,"ΠΟΛΙΤΙΚΩΝ ΜΗΧΑΝΙΚΩΝ (ΘΕΣΣΑΛΟΝΙΚΗ) ",1,0.16474464579901152]
["ΠΟΛΙΤΙΚΩΝ ΜΗΧΑΝΙΚΩΝ (ΠΑΤΡΑ)",1,null,"","",null,null,null,"ΠΟΛΙΤΙΚΩΝ ΜΗΧΑΝΙΚΩΝ Τ.Ε. (ΠΑΤΡΑ) ",1,0.16474464579901152]
["ΕΠΙΣΤΗΜΩΝ ΤΗΣ ΠΡΟΣΧΟΛΙΚΗΣ ΑΓΩΓΗΣ & ΕΚΠΑΙΔΕΥΤΙΚΟΥ ΣΧΕΔΙΑΣΜΟΥ (ΡΟΔΟΣ)",1,null,"","",null,null,null,"ΠΟΛΙΤΙΣΜΙΚΗΣ ΤΕΧΝΟΛΟΓΙΑΣ & ΕΠΙΚΟΙΝΩΝΙΑΣ (ΜΥΤΙΛΗΝΗ)",1,0.16474464579901152]
["ΣΧΕΔΙΑΣΜΟΥ & ΤΕΧΝΟΛΟΓΙΑΣ ΕΝΔΥΣΗΣ (ΚΙΛΚΙΣ)",1,null,"","",null,null,null,"ΤΕΧΝΟΛΟΓΙΑΣ ΤΡΟΦΙΜΩΝ (ΚΑΛΑΜΑΤΑ)",1,0.16474464579901152]
["ΠΑΙΔΑΓΩΓΙΚΟ ΕΙΔΙΚΗΣ ΑΓΩΓΗΣ (ΒΟΛΟΣ)",2,null,"","",null,null,null,"ΠΑΙΔΑΓΩΓΙΚΟ ΔΗΜΟΤΙΚΗΣ ΕΚΠΑΙΔΕΥΣΗΣ (ΑΘΗΝΑ)",1,0.16474464579901152]
["ΜΗΧΑΝΙΚΩΝ ΕΝΕΡΓΕΙΑΚΗΣ ΤΕΧΝΟΛΟΓΙΑΣ Τ.Ε. (ΑΘΗΝΑ)",1,null,"","",null,null,null,"ΘΕΩΡΙΑΣ ΚΑΙ ΙΣΤΟΡΙΑΣ ΤΗΣ ΤΕΧΝΗΣ (ΑΘΗΝΑ)",1,0.16474464579901152]
["ΠΛΗΡΟΦΟΡΙΚΗΣ ΚΑΙ ΤΗΛΕΠΙΚΟΙΝΩΝΙΩΝ (ΑΘΗΝΑ)",1,null,"","",null,null,null,"ΣΛΑΒΙΚΩΝ ΣΠΟΥΔΩΝ (ΑΘΗΝΑ)",1,0.16474464579901152]
["ΕΦΑΡΜΟΣΜΕΝΩΝ ΜΑΘΗΜΑΤΙΚΩΝ & ΦΥΣΙΚΩΝ ΕΠΙΣΤΗΜΩΝ (ΑΘΗΝΑ)",1,null,"","",null,null,null,"ΙΣΤΟΡΙΑΣ & ΑΡΧΑΙΟΛΟΓΙΑΣ (ΑΘΗΝΑ)",1,0.16474464579901152]
["ΠΛΗΡΟΦΟΡΙΚΗΣ (ΘΕΣΣΑΛΟΝΙΚΗ)",2,null,"","",null,null,null,"ΜΗΧΑΝΙΚΩΝ ΑΥΤΟΜΑΤΙΣΜΟΥ Τ.Ε. (ΧΑΛΚΙΔΑ) ",1,0.16474464579901152]
["ΝΟΣΗΛΕΥΤΙΚΗΣ (ΣΠΑΡΤΗ) ",1,null,"","",null,null,null,"ΠΟΛΙΤΙΚΗΣ ΕΠΙΣΤΗΜΗΣ ΚΑΙ ΔΙΕΘΝΩΝ ΣΧΕΣΕΩΝ (ΚΟΡΙΝΘΟΣ)",1,0.16474464579901152]
["ΜΗΧΑΝΙΚΩΝ ΠΑΡΑΓΩΓΗΣ & ΔΙΟΙΚΗΣΗΣ (ΞΑΝΘΗ)",4,null,"","",null,null,null,"ΠΟΛΙΤΙΚΩΝ ΜΗΧΑΝΙΚΩΝ (ΒΟΛΟΣ)",1,0.16474464579901152]
["ΜΗΧΑΝΙΚΩΝ ΗΛΕΚΤΡΟΝΙΚΩΝ ΥΠΟΛΟΓΙΣΤΩΝ ΚΑΙ ΠΛΗΡΟΦΟΡΙΚΗΣ (ΙΩΑΝΝΙΝΑ)",1,null,"","",null,null,null,"ΧΗΜΕΙΑΣ (ΑΘΗΝΑ)",1,0.16474464579901152]
["ΗΛΕΚΤΡΟΛΟΓΩΝ ΜΗΧΑΝΙΚΩΝ Τ.Ε. (ΠΑΤΡΑ)",1,null,"","",null,null,null,"ΟΠΤΙΚΗΣ ΚΑΙ ΟΠΤΟΜΕΤΡΙΑΣ (ΑΘΗΝΑ)",1,0.16474464579901152]
["ΗΛΕΚΤΡΟΛΟΓΩΝ ΜΗΧΑΝΙΚΩΝ ΚΑΙ ΜΗΧΑΝΙΚΩΝ ΥΠΟΛΟΓΙΣΤΩΝ (ΧΑΝΙΑ)",1,null,"","",null,null,null,"ΜΗΧΑΝΙΚΩΝ ΗΛΕΚΤΡΟΝΙΚΩΝ ΥΠΟΛΟΓΙΣΤΩΝ ΚΑΙ ΠΛΗΡΟΦΟΡΙΚΗΣ (ΠΑΤΡΑ)",1,0.16474464579901152]
["ΑΞΙΟΠΟΙΗΣΗΣ ΦΥΣΙΚΩΝ ΠΟΡΩΝ ΚΑΙ ΓΕΩΡΓΙΚΗΣ ΜΗΧΑΝΙΚΗΣ (ΑΘΗΝΑ)",1,null,"","",null,null,null,"ΓΕΩΛΟΓΙΑΣ (ΠΑΤΡΑ)",1,0.16474464579901152]
["ΓΕΩΠΟΝΙΑΣ, ΙΧΘΥΟΛΟΓΙΑΣ ΚΑΙ ΥΔΑΤΙΝΟΥ ΠΕΡΙΒΑΛΛΟΝΤΟΣ (ΒΟΛΟΣ)",1,null,"","",null,null,null,"ΚΟΙΝΩΝΙΟΛΟΓΙΑΣ (ΜΥΤΙΛΗΝΗ)",1,0.16474464579901152]
["ΕΠΙΣΤΗΜΗΣ ΖΩΪΚΗΣ ΠΑΡΑΓΩΓΗΣ & ΥΔΑΤΟΚΑΛΛΙΕΡΓΕΙΩΝ (ΑΘΗΝΑ)",1,null,"","",null,null,null,"ΚΟΙΝΩΝΙΚΗΣ ΑΝΘΡΩΠΟΛΟΓΙΑΣ (ΑΘΗΝΑ)",1,0.16474464579901152]
["ΙΣΤΟΡΙΑΣ & ΑΡΧΑΙΟΛΟΓΙΑΣ (ΘΕΣΣΑΛΟΝΙΚΗ)",1,null,"","",null,null,null,"ΔΑΣΟΛΟΓΙΑΣ & ΦΥΣΙΚΟΥ ΠΕΡΙΒΑΛΛΟΝΤΟΣ (ΘΕΣΣΑΛΟΝΙΚΗ)",1,0.16474464579901152]
["ΠΑΙΔΑΓΩΓΙΚΟ ΝΗΠΙΑΓΩΓΩΝ (ΦΛΩΡΙΝΑ)",2,null,"","",null,null,null,"ΜΗΧΑΝΟΛΟΓΩΝ ΜΗΧΑΝΙΚΩΝ Τ.Ε. (ΧΑΛΚΙΔΑ)",1,0.16474464579901152]
["ΑΓΡΟΝΟΜΩΝ & ΤΟΠΟΓΡΑΦΩΝ ΜΗΧΑΝΙΚΩΝ (ΑΘΗΝΑ)",1,null,"","",null,null,null,"ΕΠΙΣΤΗΜΗΣ ΔΙΑΙΤΟΛΟΓΙΑΣ & ΔΙΑΤΡΟΦΗΣ (ΑΘΗΝΑ)",1,0.16474464579901152]
["ΕΠΙΣΤΗΜΗΣ ΤΡΟΦΙΜΩΝ & ΔΙΑΤΡΟΦΗΣ (ΛΗΜΝΟΣ)",2,null,"","",null,null,null,"ΧΡΗΜΑΤΟΟΙΚΟΝΟΜΙΚΗΣ & ΤΡΑΠΕΖΙΚΗΣ ΔΙΟΙΚΗΤΙΚΗΣ (ΠΕΙΡΑΙΑΣ)",1,0.16474464579901152]
["ΣΧΟΛΗ ΠΛΟΙΑΡΧΩΝ",1,null,"","",null,null,null,"ΜΟΥΣΙΚΩΝ ΣΠΟΥΔΩΝ (ΘΕΣΣΑΛΟΝΙΚΗ)",1,0.16474464579901152]
["ΝΑΥΠΗΓΩΝ ΜΗΧΑΝΟΛΟΓΩΝ ΜΗΧΑΝΙΚΩΝ (ΑΘΗΝΑ)",1,null,"","",null,null,null,"ΔΙΟΙΚΗΣΗΣ ΕΠΙΧΕΙΡΗΣΕΩΝ (ΗΓΟΥΜΕΝΙΤΣΑ) - ΔΙΟΙΚΗΣΗ ΕΠΙΧΕΙΡΗΣΕΩΝ ",1,0.16474464579901152]
["ΜΗΧΑΝΟΛΟΓΩΝ ΜΗΧΑΝΙΚΩΝ (ΑΘΗΝΑ)",1,null,"","",null,null,null,"",""]
["ΜΑΙΕΥΤΙΚΗΣ (ΑΘΗΝΑ)",1,null,"","",null,null,null,"",""]
["ΧΗΜΕΙΑΣ (ΙΩΑΝΝΙΝΑ)",1,null,"","",null,null,null,"",""]
["ΗΛΕΚΤΡΟΝΙΚΩΝ ΜΗΧΑΝΙΚΩΝ Τ.Ε. (ΑΘΗΝΑ)",1,null,"","",null,null,null,"",""]
["ΜΗΧΑΝΟΛΟΓΩΝ ΜΗΧΑΝΙΚΩΝ Τ.Ε. (ΠΕΙΡΑΙΑΣ)",1,null,"","",null,null,null,"",""]
["ΕΡΓΟΘΕΡΑΠΕΙΑΣ (ΑΘΗΝΑ)",1,null,"","",null,null,null,"",""]
["ΕΠΙΣΤΗΜΗΣ ΦΥΣΙΚΗΣ ΑΓΩΓΗΣ ΚΑΙ ΑΘΛΗΤΙΣΜΟΥ (ΑΘΗΝΑ)",1,null,"","",null,null,null,"",""]
["ΧΗΜΙΚΩΝ ΜΗΧΑΝΙΚΩΝ (ΠΑΤΡΑ)",1,null,"","",null,null,null,"",""]
["ΝΟΜΙΚΗΣ (ΚΟΜΟΤΗΝΗ)",1,null,"","",null,null,null,"",""]
["ΧΗΜΙΚΩΝ ΜΗΧΑΝΙΚΩΝ (ΘΕΣΣΑΛΟΝΙΚΗ)",1,null,"","",null,null,null,"",""]
["ΤΕΧΝΟΛΟΓΩΝ ΓΕΩΠΟΝΩΝ (ΦΛΩΡΙΝΑ)",1,null,"","",null,null,null,"",""]
["ΜΟΥΣΙΚΗΣ ΕΠΙΣΤΗΜΗΣ & ΤΕΧΝΗΣ (ΘΕΣΣΑΛΟΝΙΚΗ)",1,null,"","",null,null,null,"",""]
["ΣΧΟΛΗ ΠΥΡΟΣΒΕΣΤΩΝ (ΜΟΝΟ ΓΙΑ ΠΟΛΙΤΕΣ)",1,null,"","",null,null,null,"",""]
["ΗΛΕΚΤΡΟΛΟΓΩΝ ΜΗΧΑΝΙΚΩΝ & ΤΕΧΝΟΛΟΓΙΑΣ ΥΠΟΛΟΓΙΣΤΩΝ (ΠΑΤΡΑ)",1,null,"","",null,null,null,"",""]
["ΗΛΕΚΤΡΟΛΟΓΩΝ ΜΗΧΑΝΙΚΩΝ & ΜΗΧΑΝΙΚΩΝ ΥΠΟΛΟΓΙΣΤΩΝ (ΘΕΣΣΑΛΟΝΙΚΗ)",2,null,"","",null,null,null,"",""]
["ΕΣΩΤΕΡΙΚΗΣ ΑΡΧΙΤΕΚΤΟΝΙΚΗΣ, ΔΙΑΚΟΣΜΗΣΗΣ ΚΑΙ ΣΧΕΔΙΑΣΜΟΥ ΑΝΤΙΚΕΙΜΕΝΩΝ (ΑΘΗΝΑ)",1,null,"","",null,null,null,"",""]
["ΔΙΟΙΚΗΣΗΣ ΕΠΙΧΕΙΡΗΣΕΩΝ (ΛΑΡΙΣΑ) - ΔΙΟΙΚΗΣΗ ΕΠΙΧΕΙΡΗΣΕΩΝ",1,null,"","",null,null,null,"",""]
["ΟΙΚΟΝΟΜΙΚΩΝ ΕΠΙΣΤΗΜΩΝ (ΚΟΜΟΤΗΝΗ)",1,null,"","",null,null,null,"",""]
["ΦΥΣΙΚΗΣ (ΙΩΑΝΝΙΝΑ)",1,null,"","",null,null,null,"",""]
["ΙΑΤΡΙΚΗΣ (ΑΘΗΝΑ)",1,null,"","",null,null,null,"",""]
["ΙΣΤΟΡΙΑΣ & ΕΘΝΟΛΟΓΙΑΣ (ΚΟΜΟΤΗΝΗ)",1,null,"","",null,null,null,"",""]
["ΒΙΟΛΟΓΙΑΣ (ΑΘΗΝΑ)",1,null,"","",null,null,null,"",""]
["ΠΑΙΔΑΓΩΓΙΚΟ ΔΗΜΟΤΙΚΗΣ ΕΚΠΑΙΔΕΥΣΗΣ (ΙΩΑΝΝΙΝΑ)",1,null,"","",null,null,null,"",""]
["ΦΥΣΙΚΟΘΕΡΑΠΕΙΑΣ (ΑΘΗΝΑ)",1,null,"","",null,null,null,"",""]
["ΚΙΝΗΜΑΤΟΓΡΑΦΟΥ (ΘΕΣΣΑΛΟΝΙΚΗ)",1,null,"","",null,null,null,"",""]
["ΑΓΓΛΙΚΗΣ ΓΛΩΣΣΑΣ ΚΑΙ ΦΙΛΟΛΟΓΙΑΣ (ΘΕΣΣΑΛΟΝΙΚΗ)",1,null,"","",null,null,null,"",""]
["ΗΛΕΚΤΡΟΛΟΓΩΝ ΜΗΧΑΝΙΚΩΝ ΚΑΙ ΜΗΧΑΝΙΚΩΝ ΥΠΟΛΟΓΙΣΤΩΝ (ΒΟΛΟΣ)",1,null,null,null,null,null,null,"",""]
["ΒΙΟΧΗΜΕΙΑΣ & ΒΙΟΤΕΧΝΟΛΟΓΙΑΣ (ΛΑΡΙΣΑ)",1,null,null,null,null,null,null,"",""]
["ΗΛΕΚΤΡΟΝΙΚΩΝ ΜΗΧΑΝΙΚΩΝ Τ.Ε. (ΠΕΙΡΑΙΑΣ)",1,null,null,null,null,null,null,"",""]
["ΝΟΣΗΛΕΥΤΙΚΗΣ (ΙΩΑΝΝΙΝΑ)",1,null,null,null,null,null,null,"",""]
["ΦΥΣΙΚΗΣ (ΗΡΑΚΛΕΙΟ)",1,null,null,null,null,null,null,"",""]
["ΦΑΡΜΑΚΕΥΤΙΚΗΣ (ΑΘΗΝΑ)",1,null,null,null,null,null,null,"",""]
["ΚΤΗΝΙΑΤΡΙΚΟ (ΣΣΑΣ) ΘΕΣ/ΝΙΚΗΣ",1,null,null,null,null,null,null,"",""]
["ΠΛΑΣΤΙΚΩΝ ΤΕΧΝΩΝ & ΕΠΙΣΤΗΜΩΝ ΤΗΣ ΤΕΧΝΗΣ (ΙΩΑΝΝΙΝΑ)",1,null,null,null,null,null,null,"",""]
["ΣΧΟΛΗ ΜΗΧΑΝΙΚΩΝ",1,null,null,null,null,null,null,"",""]
["ΜΗΧΑΝΙΚΩΝ ΣΧΕΔΙΑΣΗΣ ΠΡΟΪΟΝΤΩΝ ΚΑΙ ΣΥΣΤΗΜΑΤΩΝ (ΣΥΡΟΣ)",2,null,null,null,null,null,null,"",""]
["ΚΤΗΝΙΑΤΡΙΚΗΣ (ΘΕΣΣΑΛΟΝΙΚΗ)",1,null,null,null,null,null,null,"",""]
["ΕΚΠΑΙΔΕΥΣΗΣ & ΑΓΩΓΗΣ ΣΤΗΝ ΠΡΟΣΧΟΛΙΚΗ ΗΛΙΚΙΑ (ΑΘΗΝΑ)",1,null,null,null,null,null,null,"",""]
["ΦΙΛΟΛΟΓΙΑΣ (ΡΕΘΥΜΝΟ)",1,null,null,null,null,null,null,"",""]
["ΜΗΧΑΝΙΚΩΝ ΠΕΡΙΒΑΛΛΟΝΤΟΣ (ΚΟΖΑΝΗ)",1,null,null,null,null,null,null,"",""]
["ΝΟΜΙΚΗΣ (ΘΕΣΣΑΛΟΝΙΚΗ)",1,null,null,null,null,null,null,"",""]
["ΔΙΟΙΚΗΣΗΣ ΕΠΙΧΕΙΡΗΣΕΩΝ (ΣΕΡΡΕΣ)",1,null,null,null,null,null,null,"",""]
["ΠΛΗΡΟΦΟΡΙΚΗΣ (ΚΕΡΚΥΡΑ)",1,null,null,null,null,null,null,"",""]
["ΙΑΤΡΙΚΗΣ (ΛΑΡΙΣΑ)",1,null,null,null,null,null,null,"",""]
["","",null,null,null,null,null,null,"",""]
["","",null,null,null,null,null,null,"",""]
[null,null,null,null,null,null,null,null,"",""]
[null,null,null,null,null,null,null,null,"",""]
[null,null,null,null,null,null,null,null,"",""]
[null,null,null,null,null,null,null,null,"",""]
[null,null,null,null,null,null,null,null,"",""]
[null,null,null,null,null,null,null,null,"",""]
[null,null,null,null,null,null,null,null,"",""]
[null,null,null,null,null,null,null,null,"",""]
[null,null,null,null,null,null,null,null,"",""]
[null,null,null,null,null,null,null,null,"",""]
[null,null,null,null,null,null,null,null,"",""]
[null,null,null,null,null,null,null,null,"",""]
[null,null,null,null,null,null,null,null,"",""]
[]
[]
[]
[]
[]
[]
[]
[]
[]
[]
[]
["4 ΓΕΛ"]
["C:\\temp\\[stat-B44.xlsm]4 ΓΕΛ.xls"]
["ΜΗΧΑΝΙΚΩΝ ΤΕΧΝΟΛΟΓΙΑΣ ΠΕΤΡΕΛΑΙΟΥ & ΦΥΣΙΚΟΥ ΑΕΡΙΟΥ Τ.Ε. ΚΑΙ ΜΗΧΑΝΟΛΟΓΩΝ ΜΗΧΑΝΙΚΩΝ Τ.Ε. (ΚΑΒΑΛΑ) - ΜΗΧΑΝΙΚΩΝ ΤΕΧΝΟΛΟΓΙΑΣ ΠΕΤΡΕΛΑΙΟΥ ΚΑΙ ΦΥΣΙΚΟΥ ΑΕΡΙΟΥ Τ.Ε.",2,null,"ΤΕΙ ΑΝΑΤ. ΜΑΚ/ΝΙΑΣ & ΘΡΑΚΗΣ",5]
["ΝΟΣΗΛΕΥΤΙΚΗΣ (ΘΕΣΣΑΛΟΝΙΚΗ)",2,null,"ΤΕΙ ΘΕΣ/ΚΗΣ",5]
["ΤΕΧΝΟΛΟΓΩΝ ΓΕΩΠΟΝΩΝ (ΘΕΣΣΑΛΟΝΙΚΗ) ",1,null,"ΤΕΙ ΑΘΗΝΑΣ",4]
["ΤΕΧΝΟΛΟΓΙΑΣ ΤΡΟΦΙΜΩΝ (ΑΘΗΝΑ)",1,null,"ΤΕΙ ΠΕΛ/ΝΗΣΟΥ",2]
["ΠΟΛΙΤΙΚΩΝ ΜΗΧΑΝΙΚΩΝ Τ.Ε. ΚΑΙ ΜΗΧΑΝΙΚΩΝ ΤΟΠΟΓΡΑΦΙΑΣ & ΓΕΩΠΛΗΡΟΦΟΡΙΚΗΣ Τ.Ε. (ΑΘΗΝΑ) - ΠΟΛΙΤΙΚΩΝ ΜΗΧΑΝΙΚΩΝ Τ.Ε. ",1,null,"ΤΕΙ ΚΕΝΤΡ ΜΑΚ/ΝΙΑΣ",2]
["ΤΕΧΝΟΛΟΓΩΝ ΓΕΩΠΟΝΩΝ (ΚΑΛΑΜΑΤΑ)",1,null,"ΠΑΝ. ΔΥΤ. ΜΑΚ/ΝΙΑΣ",1]
["ΣΧΕΔΙΑΣΜΟΥ & ΤΕΧΝΟΛΟΓΙΑΣ ΕΝΔΥΣΗΣ (ΚΙΛΚΙΣ)",1,null,"ΤΕΙ ΔΥΤ. ΜΑΚ/ΝΙΑΣ",3]
["ΠΑΙΔΑΓΩΓΙΚΟ ΔΗΜΟΤΙΚΗΣ ΕΚΠΑΙΔΕΥΣΗΣ (ΦΛΩΡΙΝΑ)",1,null,"ΑΠΘ",11]
["ΗΛΕΚΤΡΟΛΟΓΩΝ ΜΗΧΑΝΙΚΩΝ Τ.Ε. (ΚΟΖΑΝΗ)",1,null,"ΤΕΙ ΔΥΤ. ΕΛΛΑΔΑΣ",2]
["ΝΟΜΙΚΗΣ (ΘΕΣΣΑΛΟΝΙΚΗ)",1,null,"ΤΕΙ  ΣΤΕΡ. ΕΛΛΑΔΑΣ",2]
["ΠΑΙΔΑΓΩΓΙΚΟ ΔΗΜΟΤΙΚΗΣ ΕΚΠΑΙΔΕΥΣΗΣ (ΘΕΣΣΑΛΟΝΙΚΗ)",2,null,"ΔΗΜ. ΠΑΝ. ΘΡΑΚΗΣ",7]
["ΜΗΧΑΝΟΛΟΓΩΝ ΜΗΧΑΝΙΚΩΝ Τ.Ε. (ΠΑΤΡΑ)",1,null,"ΕΚΠΑ",2]
["ΜΗΧΑΝΙΚΩΝ ΠΛΗΡΟΦΟΡΙΚΗΣ Τ.Ε. (ΣΕΡΡΕΣ)",1,null,"ΧΑΡΟΚΟΠΕΙΟ ΠΑΝ.",1]
["ΝΟΣΗΛΕΥΤΙΚΗΣ (ΛΑΜΙΑ)",1,null,"ΠΑΝ. ΑΙΓΑΙΟΥ",3]
["ΠΑΙΔΑΓΩΓΙΚΟ ΔΗΜΟΤΙΚΗΣ ΕΚΠΑΙΔΕΥΣΗΣ (ΑΛΕΞΑΝΔΡΟΥΠΟΛΗ)",2,null,"ΙΟΝΙΟ ΠΑΝ.",1]
["ΜΗΧΑΝΙΚΩΝ ΤΕΧΝΟΛΟΓΙΑΣ ΠΕΤΡΕΛΑΙΟΥ & ΦΥΣΙΚΟΥ ΑΕΡΙΟΥ Τ.Ε. ΚΑΙ ΜΗΧΑΝΟΛΟΓΩΝ ΜΗΧΑΝΙΚΩΝ Τ.Ε. (ΚΑΒΑΛΑ) - ΜΗΧΑΝΟΛΟΓΩΝ ΜΗΧΑΝΙΚΩΝ Τ.Ε.",2,null,"ΤΕΙ ΠΕΙΡΑΙΑ",1]
["ΕΠΙΣΤΗΜΗΣ ΦΥΣΙΚΗΣ ΑΓΩΓΗΣ ΚΑΙ ΑΘΛΗΤΙΣΜΟΥ (ΚΟΜΟΤΗΝΗ)",1,null,"ΠΑΝ. ΠΑΤΡΩΝ",3]
["ΚΟΙΝΩΝΙΚΗΣ ΔΙΟΙΚΗΣΗΣ ΚΑΙ ΠΟΛΙΤΙΚΗΣ ΕΠΙΣΤΗΜΗΣ (ΚΟΜΟΤΗΝΗ) -ΚΟΙΝΩΝΙΚΗΣ ΔΙΟΙΚΗΣΗΣ ",2,null,"ΟΠΑ",1]
["ΕΠΙΣΤΗΜΗΣ ΦΥΣΙΚΗΣ ΑΓΩΓΗΣ ΚΑΙ ΑΘΛΗΤΙΣΜΟΥ (ΘΕΣΣΑΛΟΝΙΚΗ)",2,null,"ΠΑΝ. ΠΕΛ/ΝΗΣΟΥ",1]
["ΘΕΑΤΡΙΚΩΝ ΣΠΟΥΔΩΝ (ΑΘΗΝΑ)",1,null,"ΠΑΝ. ΙΩΑΝΝΙΝΩΝ",2]
["ΠΛΗΡΟΦΟΡΙΚΗΣ ΚΑΙ ΤΗΛΕΜΑΤΙΚΗΣ (ΑΘΗΝΑ)",1,null,"ΤΕΙ ΘΕΣΣΑΛΙΑΣ",2]
["ΕΠΙΣΤΗΜΩΝ ΤΗΣ ΠΡΟΣΧΟΛΙΚΗΣ ΑΓΩΓΗΣ & ΕΚΠΑΙΔΕΥΤΙΚΟΥ ΣΧΕΔΙΑΣΜΟΥ (ΡΟΔΟΣ)",1,null,"ΠΑΝ. ΚΡΗΤΗΣ",1]
["ΟΙΚΟΝΟΜΙΚΩΝ ΕΠΙΣΤΗΜΩΝ (ΚΟΜΟΤΗΝΗ)",1,null,"ΠΑΝ. ΠΕΙΡΑΙΩΣ",1]
["ΑΡΧΕΙΟΝΟΜΙΑΣ, ΒΙΒΛΙΟΘΗΚΟΝΟΜΙΑΣ ΚΑΙ ΜΟΥΣΕΙΟΛΟΓΙΑΣ (ΚΕΡΚΥΡΑ)",1,null,"",""]
["ΜΑΙΕΥΤΙΚΗΣ (ΘΕΣΣΑΛΟΝΙΚΗ)",1,null,"",""]
["ΗΛΕΚΤΡΟΛΟΓΩΝ ΜΗΧΑΝΙΚΩΝ Τ.Ε. (ΠΕΙΡΑΙΑΣ)",1,null,"",""]
["ΓΕΩΓΡΑΦΙΑΣ (ΜΥΤΙΛΗΝΗ)",2,null,"",""]
["ΔΙΑΧΕΙΡΙΣΗΣ ΠΕΡΙΒΑΛΛΟΝΤΟΣ & ΦΥΣΙΚΩΝ ΠΟΡΩΝ (ΑΓΡΙΝΙΟ)",1,null,"",""]
["ΜΗΧΑΝΟΛΟΓΩΝ ΜΗΧΑΝΙΚΩΝ ΚΑΙ ΒΙΟΜΗΧΑΝΙΚΟΥ ΣΧΕΔΙΑΣΜΟΥ Τ.Ε. (ΚΟΖΑΝΗ) - ΒΙΟΜΗΧΑΝΙΚΟΥ ΣΧΕΔΙΑΣΜΟΥ Τ.Ε.",1,null,"",""]
["ΜΕΘΟΔΟΛΟΓΙΑΣ, ΙΣΤΟΡΙΑΣ & ΘΕΩΡΙΑΣ ΤΗΣ ΕΠΙΣΤΗΜΗΣ (ΑΘΗΝΑ)",1,null,"",""]
["ΦΙΛΟΣΟΦΙΑΣ (ΠΑΤΡΑ)",1,null,"",""]
["ΝΟΣΗΛΕΥΤΙΚΗΣ (ΠΑΤΡΑ)",1,null,"",""]
["ΦΙΛΟΣΟΦΙΑΣ & ΠΑΙΔΑΓΩΓΙΚΗΣ (ΘΕΣΣΑΛΟΝΙΚΗ)",1,null,"",""]
["ΜΑΡΚΕΤΙΝΓΚ ΚΑΙ ΕΠΙΚΟΙΝΩΝΙΑΣ (ΑΘΗΝΑ)",1,null,"",""]
["ΚΙΝΗΜΑΤΟΓΡΑΦΟΥ (ΘΕΣΣΑΛΟΝΙΚΗ)",1,null,"",""]
["ΘΕΑΤΡΙΚΩΝ ΣΠΟΥΔΩΝ (ΝΑΥΠΛΙΟ)",1,null,"",""]
["ΜΗΧΑΝΙΚΩΝ ΠΛΗΡΟΦΟΡΙΚΗΣ Τ.Ε. (ΣΠΑΡΤΗ) ",1,null,"",""]
["ΟΙΚΟΝΟΜΙΚΩΝ ΕΠΙΣΤΗΜΩΝ (ΙΩΑΝΝΙΝΑ)",1,null,"",""]
["ΜΗΧΑΝΟΛΟΓΩΝ ΟΧΗΜΑΤΩΝ Τ.Ε. (ΘΕΣΣΑΛΟΝΙΚΗ)",1,null,"",""]
["ΛΟΓΙΣΤΙΚΗΣ ΚΑΙ ΧΡΗΜΑΤΟΟΙΚΟΝΟΜΙΚΗΣ (ΛΑΡΙΣΑ)",1,null,"",""]
["ΠΡΟΣΧΟΛΙΚΗΣ ΑΓΩΓΗΣ (ΑΘΗΝΑ)",1,null,"",""]
["ΦΙΛΟΣΟΦΙΑΣ - ΠΑΙΔΑΓΩΓΙΚΗΣ & ΨΥΧΟΛΟΓΙΑΣ (ΙΩΑΝΝΙΝΑ)",1,null,"",""]
["ΦΙΛΟΣΟΦΙΚΩΝ & ΚΟΙΝΩΝΙΚΩΝ ΣΠΟΥΔΩΝ (ΡΕΘΥΜΝΟ)",1,null,"",""]
["ΔΑΣΟΠΟΝΙΑΣ & ΔΙΑΧΕΙΡΙΣΗΣ ΦΥΣΙΚΟΥ ΠΕΡΙΒΑΛΛΟΝΤΟΣ (ΚΑΡΠΕΝΗΣΙ) ",1,null,"",""]
["ΠΛΗΡΟΦΟΡΙΚΗΣ (ΠΕΙΡΑΙΑΣ)",1,null,"",""]
["ΨΥΧΟΛΟΓΙΑΣ (ΘΕΣΣΑΛΟΝΙΚΗ)",1,null,"",""]
["ΕΛΛΗΝΙΚΗΣ ΦΙΛΟΛΟΓΙΑΣ (ΚΟΜΟΤΗΝΗ)",1,null,"",""]
["ΛΟΓΙΣΤΙΚΗΣ ΚΑΙ ΧΡΗΜΑΤΟΟΙΚΟΝΟΜΙΚΗΣ (ΚΑΒΑΛΑ)",1,null,"",""]
["ΕΠΙΣΤΗΜΗΣ ΤΩΝ ΥΛΙΚΩΝ (ΠΑΤΡΑ)",1,null,"",""]
["ΠΟΛΙΤΙΚΩΝ ΕΠΙΣΤΗΜΩΝ (ΘΕΣΣΑΛΟΝΙΚΗ) ",1,null,"",""]
["ΙΑΤΡΙΚΩΝ ΕΡΓΑΣΤΗΡΙΩΝ (ΛΑΡΙΣΑ)",1,null,"",""]
["ΒΙΒΛΙΟΘΗΚΟΝΟΜΙΑΣ & ΣΥΣΤΗΜΑΤΩΝ ΠΛΗΡΟΦΟΡΗΣΗΣ (ΑΘΗΝΑ)",1,null,"",""]
["ΜΗΧΑΝΙΚΩΝ ΠΕΡΙΒΑΛΛΟΝΤΟΣ ΚΑΙ ΜΗΧΑΝΙΚΩΝ ΑΝΤΙΡΡΥΠΑΝΣΗΣ Τ.Ε. (ΚΟΖΑΝΗ) - ΜΗΧΑΝΙΚΩΝ ΑΝΤΙΡΡΥΠΑΝΣΗΣ Τ.Ε.",1,null,"",""]
["ΦΑΡΜΑΚΕΥΤΙΚΗΣ (ΘΕΣΣΑΛΟΝΙΚΗ)",1,null,"",""]
["ΓΕΩΠΟΝΙΑΣ (ΘΕΣΣΑΛΟΝΙΚΗ)",1,null,"",""]
["","",null,"",""]
["","",null,"",""]
["","",null,"",""]
["","",null,"",""]
["","",null,"",""]
["","",null,"",""]
["","",null,"",""]
["","",null,"",""]
["","",null,"",""]
["","",null,"",""]
["ΕΣΠ.x"]
["C:\\temp\\[stat-B44.xlsm]ΕΣΠ.xls"]
["ΧΗΜΕΙΑΣ (ΠΑΤΡΑ)",1,null,"ΠΑΝ. ΠΑΤΡΩΝ",1]
["ΝΟΣΗΛΕΥΤΙΚΗΣ (ΔΙΔΥΜΟΤΕΙΧΟ)",1,null,"ΤΕΙ ΑΝΑΤ. ΜΑΚ/ΝΙΑΣ & ΘΡΑΚΗΣ",1]
["ΜΗΧΑΝΙΚΩΝ ΠΕΡΙΒΑΛΛΟΝΤΟΣ (ΞΑΝΘΗ) ",1,null,"ΔΗΜ. ΠΑΝ. ΘΡΑΚΗΣ",2]
["ΜΗΧΑΝΙΚΩΝ ΠΛΗΡΟΦΟΡΙΚΗΣ Τ.Ε. (ΣΕΡΡΕΣ)",1,null,"ΤΕΙ ΚΕΝΤΡ ΜΑΚ/ΝΙΑΣ",1]
["ΤΕΧΝΟΛΟΓΙΑΣ ΤΡΟΦΙΜΩΝ (ΑΡΓΟΣΤΟΛΙ)",1,null,"ΤΕΙ ΙΟΝΙΩΝ ΝΗΣΩΝ",1]
["ΚΟΙΝΩΝΙΚΗΣ ΔΙΟΙΚΗΣΗΣ ΚΑΙ ΠΟΛΙΤΙΚΗΣ ΕΠΙΣΤΗΜΗΣ (ΚΟΜΟΤΗΝΗ) -ΚΟΙΝΩΝΙΚΗΣ ΔΙΟΙΚΗΣΗΣ ",1,null,"",""]
["","",null,"",""]
["","",null,"",""]
["","",null,"",""]
["","",null,"",""]
["","",null,"",""]
["","",null,"",""]
["","",null,"",""]
["ΕΚΚΛ "]
["C:\\temp\\[stat-B44.xlsm]ΕΚΚΛ .xls"]
["ΠΡΟΓΡΑΜΜΑ ΔΙΑΧΕΙΡΙΣΗΣ ΕΚΚΛΗΣΙΑΣΤΙΚΩΝ ΚΕΙΜΗΛΙΩΝ ΘΕΣ/ΝΙΚΗΣ",1,null,"ΑΕΑ ΘΕΣ/ΝΙΚΗΣ",1]
["ΠΡΟΓΡΑΜΜΑ ΙΕΡΑΤΙΚΩΝ ΣΠΟΥΔΩΝ ΑΘΗΝΑΣ",1,null,"ΑΕΑ ΑΘΗΝΑΣ",1]
["ΣΧΕΔΙΑΣΜΟΥ & ΤΕΧΝΟΛΟΓΙΑΣ ΕΝΔΥΣΗΣ (ΚΙΛΚΙΣ)",1,null,"ΤΕΙ ΚΕΝΤΡ ΜΑΚ/ΝΙΑΣ",1]
["","",null,"",""]
["","",null,"",""]
["","",null,"",""]
["","",null,"",""]
["","",null,"",""]
["","",null,"",""]
["","",null,"",""]
["","",null,"",""]
["","",null,"",""]
["","",null,"",""]
["","",null,"",""]
["ΑΒΔΗΡ"]
["C:\\temp\\[stat-B44.xlsm]ΑΒΔΗΡ.xls"]
["ΤΕΧΝΟΛΟΓΩΝ ΓΕΩΠΟΝΩΝ (ΑΜΑΛΙΑΔΑ)",1,null,"ΤΕΙ ΔΥΤ. ΕΛΛΑΔΑΣ",1]
["ΜΗΧΑΝΙΚΩΝ ΦΥΣΙΚΩΝ ΠΟΡΩΝ & ΠΕΡΙΒΑΛΛΟΝΤΟΣ Τ.Ε. (ΧΑΝΙΑ)",1,null,"ΤΕΙ ΚΡΗΤΗΣ",3]
["ΜΗΧΑΝΙΚΩΝ ΤΕΧΝΟΛΟΓΙΑΣ ΠΕΤΡΕΛΑΙΟΥ & ΦΥΣΙΚΟΥ ΑΕΡΙΟΥ Τ.Ε. ΚΑΙ ΜΗΧΑΝΟΛΟΓΩΝ ΜΗΧΑΝΙΚΩΝ Τ.Ε. (ΚΑΒΑΛΑ) - ΜΗΧΑΝΟΛΟΓΩΝ ΜΗΧΑΝΙΚΩΝ Τ.Ε.",2,null,"ΤΕΙ ΑΝΑΤ. ΜΑΚ/ΝΙΑΣ & ΘΡΑΚΗΣ",6]
["ΠΟΙΜΑΝΤΙΚΗΣ & ΚΟΙΝΩΝΙΚΗΣ ΘΕΟΛΟΓΙΑΣ (ΘΕΣΣΑΛΟΝΙΚΗ)",1,null,"ΑΠΘ",2]
["ΜΗΧΑΝΙΚΩΝ ΗΛΕΚΤΡΟΝΙΚΩΝ ΥΠΟΛΟΓΙΣΤΩΝ ΚΑΙ ΠΛΗΡΟΦΟΡΙΚΗΣ (ΙΩΑΝΝΙΝΑ)",1,null,"ΠΑΝ. ΙΩΑΝΝΙΝΩΝ",1]
["ΜΗΧΑΝΙΚΩΝ ΠΕΡΙΒΑΛΛΟΝΤΟΣ (ΧΑΝΙΑ)",1,null,"ΠΟΛ/ΧΝΕΙΟ ΚΡΗΤΗΣ",1]
["ΓΕΩΛΟΓΙΑΣ (ΘΕΣΣΑΛΟΝΙΚΗ)",1,null,"ΠΑΝ. ΠΕΛ/ΝΗΣΟΥ",1]
["ΦΙΛΟΛΟΓΙΑΣ (ΚΑΛΑΜΑΤΑ)",1,null,"ΤΕΙ ΔΥΤ. ΜΑΚ/ΝΙΑΣ",3]
["ΜΑΙΕΥΤΙΚΗΣ (ΠΤΟΛΕΜΑΪΔΑ)",2,null,"ΠΑΝ. ΑΙΓΑΙΟΥ",2]
["ΜΕΣΟΓΕΙΑΚΩΝ ΣΠΟΥΔΩΝ (ΡΟΔΟΣ)",1,null,"ΤΕΙ ΑΘΗΝΑΣ",1]
["ΔΗΜΟΣΙΑΣ ΥΓΕΙΑΣ ΚΑΙ ΚΟΙΝΟΤΙΚΗΣ ΥΓΕΙΑΣ (ΑΘΗΝΑ) - ΚΟΙΝΟΤΙΚΗΣ ΥΓΕΙΑΣ",1,null,"ΔΗΜ. ΠΑΝ. ΘΡΑΚΗΣ",4]
["ΚΟΙΝΩΝΙΚΗΣ ΔΙΟΙΚΗΣΗΣ ΚΑΙ ΠΟΛΙΤΙΚΗΣ ΕΠΙΣΤΗΜΗΣ (ΚΟΜΟΤΗΝΗ) -ΚΟΙΝΩΝΙΚΗΣ ΔΙΟΙΚΗΣΗΣ ",1,null,"ΤΕΙ ΙΟΝΙΩΝ ΝΗΣΩΝ",1]
["ΤΕΧΝΟΛΟΓΩΝ ΠΕΡΙΒΑΛΛΟΝΤΟΣ Τ.Ε. (ΖΑΚΥΝΘΟΣ) - ΤΕΧΝΟΛΟΓΙΩΝ ΦΥΣΙΚΟΥ ΠΕΡΙΒΑΛΛΟΝΤΟΣ Τ.Ε.",1,null,"ΤΕΙ ΘΕΣ/ΚΗΣ",1]
["ΔΙΟΙΚΗΣΗΣ ΕΠΙΧΕΙΡΗΣΕΩΝ (ΘΕΣΣΑΛΟΝΙΚΗ) - ΔΙΟΙΚΗΣΗ ΤΟΥΡΙΣΤΙΚΩΝ ΕΠΙΧΕΙΡΗΣΕΩΝ ΚΑΙ ΕΠΙΧΕΙΡΗΣΕΩΝ ΦΙΛΟΞΕΝΙΑΣ",1,null,"ΙΟΝΙΟ ΠΑΝ.",1]
["ΔΙΟΙΚΗΣΗΣ ΕΠΙΧΕΙΡΗΣΕΩΝ (ΗΡΑΚΛΕΙΟ) - ΔΙΟΙΚΗΣΗ ΤΟΥΡΙΣΤΙΚΩΝ ΕΠΙΧΕΙΡΗΣΕΩΝ ΚΑΙ ΕΠΙΧΕΙΡΗΣΕΩΝ ΦΙΛΟΞΕΝΙΑΣ",1,null,"ΠΑΝ. ΚΡΗΤΗΣ",1]
["ΕΠΙΣΤΗΜΩΝ ΤΗΣ ΕΚΠΑΙΔΕΥΣΗΣ ΣΤΗΝ ΠΡΟΣΧΟΛΙΚΗ ΗΛΙΚΙΑ (ΑΛΕΞΑΝΔΡΟΥΠΟΛΗ)",1,null,"",""]
["ΛΟΓΙΣΤΙΚΗΣ ΚΑΙ ΧΡΗΜΑΤΟΟΙΚΟΝΟΜΙΚΗΣ (ΚΑΒΑΛΑ)",1,null,"",""]
["ΗΛΕΚΤΡΟΛΟΓΩΝ ΜΗΧΑΝΙΚΩΝ Τ.Ε. (ΚΟΖΑΝΗ)",1,null,"",""]
["ΤΕΧΝΩΝ ΗΧΟΥ & ΕΙΚΟΝΑΣ (ΚΕΡΚΥΡΑ)",1,null,"",""]
["ΤΕΧΝΟΛΟΓΩΝ ΓΕΩΠΟΝΩΝ (ΗΡΑΚΛΕΙΟ) ",1,null,"",""]
["ΔΑΣΟΠΟΝΙΑΣ & ΔΙΑΧΕΙΡΙΣΗΣ ΦΥΣΙΚΟΥ ΠΕΡΙΒΑΛΛΟΝΤΟΣ (ΔΡΑΜΑ)",1,null,"",""]
["ΗΛΕΚΤΡΟΛΟΓΩΝ ΜΗΧΑΝΙΚΩΝ Τ.Ε. (ΚΑΒΑΛΑ)",1,null,"",""]
["ΜΗΧΑΝΙΚΩΝ ΤΕΧΝΟΛΟΓΙΑΣ ΠΕΤΡΕΛΑΙΟΥ & ΦΥΣΙΚΟΥ ΑΕΡΙΟΥ Τ.Ε. ΚΑΙ ΜΗΧΑΝΟΛΟΓΩΝ ΜΗΧΑΝΙΚΩΝ Τ.Ε. (ΚΑΒΑΛΑ) - ΜΗΧΑΝΙΚΩΝ ΤΕΧΝΟΛΟΓΙΑΣ ΠΕΤΡΕΛΑΙΟΥ ΚΑΙ ΦΥΣΙΚΟΥ ΑΕΡΙΟΥ Τ.Ε.",1,null,"",""]
["ΠΑΙΔΑΓΩΓΙΚΟ ΔΗΜΟΤΙΚΗΣ ΕΚΠΑΙΔΕΥΣΗΣ (ΡΕΘΥΜΝΟ)",1,null,"",""]
["ΜΑΘΗΜΑΤΙΚΩΝ (ΣΑΜΟΣ) - ΜΑΘΗΜΑΤΙΚΩΝ",1,null,"",""]
["ΔΑΣΟΛΟΓΙΑΣ & ΔΙΑΧΕΙΡΙΣΗΣ ΠΕΡΙΒΑΛΛΟΝΤΟΣ & ΦΥΣΙΚΩΝ ΠΟΡΩΝ (ΟΡΕΣΤΙΑΔΑ)",1,null,"",""]
["ΟΙΚΟΝΟΜΙΚΩΝ ΕΠΙΣΤΗΜΩΝ (ΚΟΜΟΤΗΝΗ)",1,null,"",""]
["","",null,"",""]
["","",null,"",""]
["","",null,"",""]
["","",null,"",""]
["","",null,"",""]
["","",null,"",""]
["","",null,"",""]
["ΓΛΑΥΚ"]
["C:\\temp\\[stat-B44.xlsm]ΓΛΑΥΚΗ.xls"]
["ΕΚΠΑΙΔΕΥΤΙΚΩΝ ΗΛΕΚΤΡΟΛΟΓΩΝ ΜΗΧΑΝΙΚΩΝ & ΕΚΠΑΙΔΕΥΤΙΚΩΝ  ΗΛΕΚΤΡΟΝΙΚΩΝ ΜΗΧΑΝΙΚΩΝ - ΕΚΠΑΙΔΕΥΤΙΚΩΝ ΗΛΕΚΤΡΟΛΟΓΩΝ ΜΗΧΑΝΙΚΩΝ",1,null,"ΑΣΠΑΙΤΕ",1]
["ΟΙΚΟΝΟΜΙΚΩΝ ΕΠΙΣΤΗΜΩΝ (ΠΑΤΡΑ)",1,null,"ΠΑΝ. ΠΑΤΡΩΝ",3]
["ΑΙΣΘΗΤΙΚΗΣ & ΚΟΣΜΗΤΟΛΟΓΙΑΣ (ΘΕΣΣΑΛΟΝΙΚΗ)",1,null,"ΤΕΙ ΘΕΣ/ΚΗΣ",4]
["ΔΑΣΟΛΟΓΙΑΣ & ΔΙΑΧΕΙΡΙΣΗΣ ΠΕΡΙΒΑΛΛΟΝΤΟΣ & ΦΥΣΙΚΩΝ ΠΟΡΩΝ (ΟΡΕΣΤΙΑΔΑ)",1,null,"ΔΗΜ. ΠΑΝ. ΘΡΑΚΗΣ",1]
["ΓΕΩΛΟΓΙΑΣ & ΓΕΩΠΕΡΙΒΑΛΛΟΝΤΟΣ (ΑΘΗΝΑ)",1,null,"ΕΚΠΑ",7]
["ΟΙΚΟΝΟΜΙΚΗΣ & ΠΕΡΙΦΕΡΕΙΑΚΗΣ ΑΝΑΠΤΥΞΗΣ (ΑΘΗΝΑ)",1,null,"ΠΑΝΤΕΙΟ",2]
["ΠΟΛΙΤΙΚΗΣ ΕΠΙΣΤΗΜΗΣ (ΡΕΘΥΜΝΟ)",1,null,"ΠΑΝ. ΚΡΗΤΗΣ",2]
["ΚΟΙΝΩΝΙΚΗΣ ΑΝΘΡΩΠΟΛΟΓΙΑΣ & ΙΣΤΟΡΙΑΣ (ΜΥΤΙΛΗΝΗ)",1,null,"ΠΑΝ. ΑΙΓΑΙΟΥ",3]
["ΜΗΧΑΝΙΚΩΝ ΤΕΧΝΟΛΟΓΙΑΣ ΑΕΡΟΣΚΑΦΩΝ Τ.Ε. (ΧΑΛΚΙΔΑ)",1,null,"ΤΕΙ  ΣΤΕΡ. ΕΛΛΑΔΑΣ",3]
["ΕΠΙΣΤΗΜΗΣ & ΤΕΧΝΟΛΟΓΙΑΣ ΥΛΙΚΩΝ (ΗΡΑΚΛΕΙΟ)",1,null,"ΑΠΘ",8]
["ΠΟΛΙΤΙΚΩΝ ΜΗΧΑΝΙΚΩΝ (ΘΕΣΣΑΛΟΝΙΚΗ) ",1,null,"ΠΑΝ. ΙΩΑΝΝΙΝΩΝ",2]
["ΧΗΜΕΙΑΣ (ΙΩΑΝΝΙΝΑ)",1,null,"ΤΕΙ ΔΥΤ. ΕΛΛΑΔΑΣ",1]
["ΠΟΛΙΤΙΚΩΝ ΜΗΧΑΝΙΚΩΝ Τ.Ε. (ΠΑΤΡΑ) ",1,null,"ΤΕΙ ΠΕΛ/ΝΗΣΟΥ",1]
["ΠΑΙΔΑΓΩΓΙΚΟ ΔΗΜΟΤΙΚΗΣ ΕΚΠΑΙΔΕΥΣΗΣ (ΘΕΣΣΑΛΟΝΙΚΗ)",5,null,"ΤΕΙ ΑΝΑΤ. ΜΑΚ/ΝΙΑΣ & ΘΡΑΚΗΣ",2]
["ΠΟΛΙΤΙΣΜΙΚΗΣ ΤΕΧΝΟΛΟΓΙΑΣ & ΕΠΙΚΟΙΝΩΝΙΑΣ (ΜΥΤΙΛΗΝΗ)",1,null,"ΑΣΚΤ",1]
["ΘΕΑΤΡΟΥ (ΘΕΣΣΑΛΟΝΙΚΗ)",1,null,"ΠΑΝ. ΠΕΛ/ΝΗΣΟΥ",1]
["ΔΙΑΤΡΟΦΗΣ & ΔΙΑΙΤΟΛΟΓΙΑΣ (ΘΕΣΣΑΛΟΝΙΚΗ)",1,null,"ΠΑΝ. ΘΕΣΣΑΛΙΑΣ",2]
["ΤΕΧΝΟΛΟΓΙΑΣ ΤΡΟΦΙΜΩΝ (ΚΑΛΑΜΑΤΑ)",1,null,"ΤΕΙ ΑΘΗΝΑΣ",1]
["ΔΑΣΟΠΟΝΙΑΣ & ΔΙΑΧΕΙΡΙΣΗΣ ΦΥΣΙΚΟΥ ΠΕΡΙΒΑΛΛΟΝΤΟΣ (ΔΡΑΜΑ)",1,null,"ΤΕΙ ΔΥΤ. ΜΑΚ/ΝΙΑΣ",1]
["ΠΑΙΔΑΓΩΓΙΚΟ ΔΗΜΟΤΙΚΗΣ ΕΚΠΑΙΔΕΥΣΗΣ (ΑΘΗΝΑ)",1,null,"",""]
["ΘΕΩΡΙΑΣ ΚΑΙ ΙΣΤΟΡΙΑΣ ΤΗΣ ΤΕΧΝΗΣ (ΑΘΗΝΑ)",1,null,"",""]
["ΣΛΑΒΙΚΩΝ ΣΠΟΥΔΩΝ (ΑΘΗΝΑ)",1,null,"",""]
["ΙΣΤΟΡΙΑΣ & ΑΡΧΑΙΟΛΟΓΙΑΣ (ΑΘΗΝΑ)",1,null,"",""]
["ΜΗΧΑΝΙΚΩΝ ΑΥΤΟΜΑΤΙΣΜΟΥ Τ.Ε. (ΧΑΛΚΙΔΑ) ",1,null,"",""]
["ΠΟΛΙΤΙΚΗΣ ΕΠΙΣΤΗΜΗΣ ΚΑΙ ΔΙΕΘΝΩΝ ΣΧΕΣΕΩΝ (ΚΟΡΙΝΘΟΣ)",1,null,"",""]
["ΗΛΕΚΤΡΟΛΟΓΩΝ ΜΗΧΑΝΙΚΩΝ Τ.Ε. (ΚΑΒΑΛΑ)",1,null,"",""]
["ΠΟΛΙΤΙΚΩΝ ΜΗΧΑΝΙΚΩΝ (ΒΟΛΟΣ)",1,null,"",""]
["ΧΗΜΕΙΑΣ (ΑΘΗΝΑ)",1,null,"",""]
["ΜΗΧΑΝΟΛΟΓΩΝ ΜΗΧΑΝΙΚΩΝ (ΒΟΛΟΣ)",1,null,"",""]
["ΟΠΤΙΚΗΣ ΚΑΙ ΟΠΤΟΜΕΤΡΙΑΣ (ΑΘΗΝΑ)",1,null,"",""]
["ΦΥΣΙΚΗΣ (ΑΘΗΝΑ)",1,null,"",""]
["ΜΑΙΕΥΤΙΚΗΣ (ΠΤΟΛΕΜΑΪΔΑ)",1,null,"",""]
["ΜΗΧΑΝΙΚΩΝ ΗΛΕΚΤΡΟΝΙΚΩΝ ΥΠΟΛΟΓΙΣΤΩΝ ΚΑΙ ΠΛΗΡΟΦΟΡΙΚΗΣ (ΠΑΤΡΑ)",1,null,"",""]
["ΓΕΩΛΟΓΙΑΣ (ΠΑΤΡΑ)",1,null,"",""]
["ΚΟΙΝΩΝΙΟΛΟΓΙΑΣ (ΜΥΤΙΛΗΝΗ)",1,null,"",""]
["ΦΥΣΙΚΗΣ (ΙΩΑΝΝΙΝΑ)",1,null,"",""]
["ΚΟΙΝΩΝΙΚΗΣ ΑΝΘΡΩΠΟΛΟΓΙΑΣ (ΑΘΗΝΑ)",1,null,"",""]
["ΦΥΣΙΚΟΘΕΡΑΠΕΙΑΣ (ΘΕΣΣΑΛΟΝΙΚΗ)",1,null,"",""]
["ΔΑΣΟΛΟΓΙΑΣ & ΦΥΣΙΚΟΥ ΠΕΡΙΒΑΛΛΟΝΤΟΣ (ΘΕΣΣΑΛΟΝΙΚΗ)",1,null,"",""]
["ΜΗΧΑΝΟΛΟΓΩΝ ΜΗΧΑΝΙΚΩΝ Τ.Ε. (ΧΑΛΚΙΔΑ)",1,null,"",""]
["ΙΑΤΡΙΚΗΣ (ΑΘΗΝΑ)",1,null,"",""]
["ΜΗΧΑΝΟΛΟΓΩΝ ΟΧΗΜΑΤΩΝ Τ.Ε. (ΘΕΣΣΑΛΟΝΙΚΗ)",1,null,"",""]
["","",null,"",""]
["","",null,"",""]
["","",null,"",""]
["","",null,"",""]
["","",null,"",""]
["","",null,"",""]
["","",null,"",""]
["","",null,"",""]
["","",null,"",""]
["","",null,"",""]
["ΣΤΑΥΡ"]
["C:\\temp\\[stat-B44.xlsm]ΣΤΑΥΡ.xls"]
["ΤΕΧΝΟΛΟΓΩΝ ΓΕΩΠΟΝΩΝ (ΗΡΑΚΛΕΙΟ) ",1,null,"ΤΕΙ ΚΡΗΤΗΣ",1]
["ΗΛΕΚΤΡΟΛΟΓΩΝ ΜΗΧΑΝΙΚΩΝ Τ.Ε. (ΚΑΒΑΛΑ)",1,null,"ΤΕΙ ΑΝΑΤ. ΜΑΚ/ΝΙΑΣ & ΘΡΑΚΗΣ",2]
["ΧΗΜΙΚΩΝ ΜΗΧΑΝΙΚΩΝ (ΘΕΣΣΑΛΟΝΙΚΗ)",1,null,"ΑΠΘ",2]
["ΙΣΤΟΡΙΑΣ & ΑΡΧΑΙΟΛΟΓΙΑΣ (ΘΕΣΣΑΛΟΝΙΚΗ)",1,null,"ΠΑΝ. ΘΕΣΣΑΛΙΑΣ",1]
["ΜΗΧΑΝΟΛΟΓΩΝ ΜΗΧΑΝΙΚΩΝ (ΒΟΛΟΣ)",1,null,"",""]
["ΜΗΧΑΝΙΚΩΝ ΠΛΗΡΟΦΟΡΙΚΗΣ Τ.Ε. (ΚΑΒΑΛΑ) ",1,null,"",""]
["","",null,"",""]
["","",null,"",""]
["","",null,"",""]
["","",null,"",""]
["","",null,"",""]
["","",null,"",""]
["","",null,"",""]
["","",null,"",""]
["","",null,"",""]
["","",null,"",""]
["","",null,"",""]
["ΑΞΙΟΝ"]
["C:\\temp\\[stat-B44.xlsm]ΑΞΙΟΝ.xls"]
["ΕΠΙΣΤΗΜΗΣ ΔΙΑΙΤΟΛΟΓΙΑΣ & ΔΙΑΤΡΟΦΗΣ (ΑΘΗΝΑ)",1,null,"ΧΑΡΟΚΟΠΕΙΟ ΠΑΝ.",1]
["ΦΙΛΟΣΟΦΙΑΣ (ΠΑΤΡΑ)",1,null,"ΠΑΝ. ΠΑΤΡΩΝ",1]
["ΧΡΗΜΑΤΟΟΙΚΟΝΟΜΙΚΗΣ & ΤΡΑΠΕΖΙΚΗΣ ΔΙΟΙΚΗΤΙΚΗΣ (ΠΕΙΡΑΙΑΣ)",1,null,"ΠΑΝ. ΠΕΙΡΑΙΩΣ",1]
["ΜΗΧΑΝΙΚΩΝ ΤΕΧΝΟΛΟΓΙΑΣ ΠΕΤΡΕΛΑΙΟΥ & ΦΥΣΙΚΟΥ ΑΕΡΙΟΥ Τ.Ε. ΚΑΙ ΜΗΧΑΝΟΛΟΓΩΝ ΜΗΧΑΝΙΚΩΝ Τ.Ε. (ΚΑΒΑΛΑ) - ΜΗΧΑΝΙΚΩΝ ΤΕΧΝΟΛΟΓΙΑΣ ΠΕΤΡΕΛΑΙΟΥ ΚΑΙ ΦΥΣΙΚΟΥ ΑΕΡΙΟΥ Τ.Ε.",1,null,"ΤΕΙ ΑΝΑΤ. ΜΑΚ/ΝΙΑΣ & ΘΡΑΚΗΣ",1]
["ΜΟΥΣΙΚΩΝ ΣΠΟΥΔΩΝ (ΚΕΡΚΥΡΑ)",1,null,"ΙΟΝΙΟ ΠΑΝ.",1]
["","",null,"",""]
["","",null,"",""]
["","",null,"",""]
["","",null,"",""]
["","",null,"",""]
["","",null,"",""]
["μουσι"]
["C:\\temp\\[stat-B5.xlsm]μουσικο .xls"]
["ΜΟΥΣΙΚΩΝ ΣΠΟΥΔΩΝ (ΘΕΣΣΑΛΟΝΙΚΗ)",1,null,"ΑΠΘ",2]
["ΔΙΟΙΚΗΣΗΣ ΕΠΙΧΕΙΡΗΣΕΩΝ (ΚΟΖΑΝΗ)",1,null,"ΤΕΙ ΔΥΤ. ΜΑΚ/ΝΙΑΣ",1]
["ΜΟΥΣΙΚΩΝ ΣΠΟΥΔΩΝ (ΚΕΡΚΥΡΑ)",1,null,"ΙΟΝΙΟ ΠΑΝ.",1]
["ΜΗΧΑΝΙΚΩΝ ΠΛΗΡΟΦΟΡΙΑΚΩΝ & ΕΠΙΚΟΙΝΩΝΙΑΚΩΝ ΣΥΣΤΗΜΑΤΩΝ (ΣΑΜΟΣ)",1,null,"ΠΑΝ. ΑΙΓΑΙΟΥ",1]
["ΗΛΕΚΤΡΟΛΟΓΩΝ ΜΗΧΑΝΙΚΩΝ Τ.Ε. (ΚΑΒΑΛΑ)",1,null,"ΤΕΙ ΑΝΑΤ. ΜΑΚ/ΝΙΑΣ & ΘΡΑΚΗΣ",1]
["ΛΑΪΚΗΣ & ΠΑΡΑΔΟΣΙΑΚΗΣ ΜΟΥΣΙΚΗΣ (ΑΡΤΑ)",2,null,"ΤΕΙ ΗΠΕΙΡΟΥ",3]
["ΓΕΡΜΑΝΙΚΗΣ ΓΛΩΣΣΑΣ ΚΑΙ ΦΙΛΟΛΟΓΙΑΣ (ΘΕΣΣΑΛΟΝΙΚΗ)",1,null,"ΔΗΜ. ΠΑΝ. ΘΡΑΚΗΣ",1]
["ΔΙΟΙΚΗΣΗΣ ΕΠΙΧΕΙΡΗΣΕΩΝ (ΗΓΟΥΜΕΝΙΤΣΑ) - ΔΙΟΙΚΗΣΗ ΕΠΙΧΕΙΡΗΣΕΩΝ ",1,null,"ΠΑΝ. ΚΡΗΤΗΣ",1]
["ΕΠΙΣΤΗΜΗΣ ΦΥΣΙΚΗΣ ΑΓΩΓΗΣ ΚΑΙ ΑΘΛΗΤΙΣΜΟΥ (ΚΟΜΟΤΗΝΗ)",1,null,"",""]
["ΠΟΛΙΤΙΚΗΣ ΕΠΙΣΤΗΜΗΣ (ΡΕΘΥΜΝΟ)",1,null,"",""]
["","",null,"",""]
["","",null,"",""]
["","",null,"",""]
["","",null,"",""]
["","",null,"",""]
["","",null,"",""]
["","",null,"",""]
["","",null,"",""]
["","",null,"",""]
["","",null,"",""]
["","",null,"",""]
["","",null,"",""]
["","",null,"",""]
["","",null,"",""]
["","",null,"",""]
["","",null,"",""]
["","",null,"",""]
["","",null,"",""]
["","",null,"",""]
["","",null,"",""]
["","",null,"",""]
["","",null,"",""]